{"text_format":"1","workbook":"xlsx","n_sheets":2,"sheets":["Gen_requete_PAA","Tuto complet (pas à jour)"],"not_rendered":{"charts":0,"images":6,"macros":1,"external_links":0,"defined_names":1,"comments":0,"pivot_tables":0},"unopened":[],"bounds":{"document_bytes":16777216,"sheet_cells":100000,"rows_first":2000,"rows_last":500,"rows_between":2000,"halvings":0,"cell_chars":16384,"cell_head_chars":4096},"cells_cut":0,"cells_raw":0,"read":"whole","date_system":"1900"}

{"sheet":"Gen_requete_PAA","index":0,"n_rows":1005,"n_cols":28,"rows_kept":1005,"cut":false,"hidden":false,"merged":[[0,1,0,15]]}
[null,"GENERATEUR D'URL \"Question\" SUR GOOGLE\n(pour choper un maximum de People Also Ask)"]
[null,"1/ Version de Google souhaitée : ",null,"www.google.fr"]
[]
[null,"2/ Mots clés interrogatifs\n (12 max)",null,"quoi","comment","combien","pourquoi","quand","où","quel","quel meilleur","qui","comment faire","comment apprendre","comment savoir"]
[]
[null,"3/ Vos expressions clé ci-dessous\n(max : 1000)"]
[]
[null,"crepe",null,null,null,null,null,null,null,null,null,null,null,null,null,null,{"$f":"IF(ISBLANK(D$4),\"\",IF(ISBLANK($B8),\"\",\"https://\"&$D$2&\"/search?q=\"&SUBSTITUTE(D$4&\" \"&$B8,\" \",\"+\")&\"&ion=0&num=10\"))","v":"https://www.google.fr/search?q=quoi+crepe&ion=0&num=10"},{"$f":"IF(ISBLANK(E$4),\"\",IF(ISBLANK($B8),\"\",\"https://\"&$D$2&\"/search?q=\"&SUBSTITUTE(E$4&\" \"&$B8,\" \",\"+\")&\"&ion=0&num=10\"))","v":"https://www.google.fr/search?q=comment+crepe&ion=0&num=10"},"https://www.google.fr/search?q=combien+crepe&ion=0&num=10","https://www.google.fr/search?q=pourquoi+crepe&ion=0&num=10","https://www.google.fr/search?q=quand+crepe&ion=0&num=10","https://www.google.fr/search?q=où+crepe&ion=0&num=10","https://www.google.fr/search?q=quel+crepe&ion=0&num=10","https://www.google.fr/search?q=quel+meilleur+crepe&ion=0&num=10","https://www.google.fr/search?q=qui+crepe&ion=0&num=10","https://www.google.fr/search?q=comment+faire+crepe&ion=0&num=10","https://www.google.fr/search?q=comment+apprendre+crepe&ion=0&num=10","https://www.google.fr/search?q=comment+savoir+crepe&ion=0&num=10"]
[null,"kouign amann",null,null,null,null,null,null,null,null,null,null,null,null,null,null,{"$f":"IF(ISBLANK(D$4),\"\",IF(ISBLANK($B9),\"\",\"https://\"&$D$2&\"/search?q=\"&SUBSTITUTE(D$4&\" \"&$B9,\" \",\"+\")&\"&ion=0&num=10\"))","v":"https://www.google.fr/search?q=quoi+kouign+amann&ion=0&num=10"},{"$f":"IF(ISBLANK(E$4),\"\",IF(ISBLANK($B9),\"\",\"https://\"&$D$2&\"/search?q=\"&SUBSTITUTE(E$4&\" \"&$B9,\" \",\"+\")&\"&ion=0&num=10\"))","v":"https://www.google.fr/search?q=comment+kouign+amann&ion=0&num=10"},{"$f":"IF(ISBLANK(F$4),\"\",IF(ISBLANK($B9),\"\",\"https://\"&$D$2&\"/search?q=\"&SUBSTITUTE(F$4&\" \"&$B9,\" \",\"+\")&\"&ion=0&num=10\"))","v":"https://www.google.fr/search?q=combien+kouign+amann&ion=0&num=10"},{"$f":"IF(ISBLANK(G$4),\"\",IF(ISBLANK($B9),\"\",\"https://\"&$D$2&\"/search?q=\"&SUBSTITUTE(G$4&\" \"&$B9,\" \",\"+\")&\"&ion=0&num=10\"))","v":"https://www.google.fr/search?q=pourquoi+kouign+amann&ion=0&num=10"},{"$f":"IF(ISBLANK(H$4),\"\",IF(ISBLANK($B9),\"\",\"https://\"&$D$2&\"/search?q=\"&SUBSTITUTE(H$4&\" \"&$B9,\" \",\"+\")&\"&ion=0&num=10\"))","v":"https://www.google.fr/search?q=quand+kouign+amann&ion=0&num=10"},{"$f":"IF(ISBLANK(I$4),\"\",IF(ISBLANK($B9),\"\",\"https://\"&$D$2&\"/search?q=\"&SUBSTITUTE(I$4&\" \"&$B9,\" \",\"+\")&\"&ion=0&num=10\"))","v":"https://www.google.fr/search?q=où+kouign+amann&ion=0&num=10"},{"$f":"IF(ISBLANK(J$4),\"\",IF(ISBLANK($B9),\"\",\"https://\"&$D$2&\"/search?q=\"&SUBSTITUTE(J$4&\" \"&$B9,\" \",\"+\")&\"&ion=0&num=10\"))","v":"https://www.google.fr/search?q=quel+kouign+amann&ion=0&num=10"},{"$f":"IF(ISBLANK(K$4),\"\",IF(ISBLANK($B9),\"\",\"https://\"&$D$2&\"/search?q=\"&SUBSTITUTE(K$4&\" \"&$B9,\" \",\"+\")&\"&ion=0&num=10\"))","v":"https://www.google.fr/search?q=quel+meilleur+kouign+amann&ion=0&num=10"},{"$f":"IF(ISBLANK(L$4),\"\",IF(ISBLANK($B9),\"\",\"https://\"&$D$2&\"/search?q=\"&SUBSTITUTE(L$4&\" \"&$B9,\" \",\"+\")&\"&ion=0&num=10\"))","v":"https://www.google.fr/search?q=qui+kouign+amann&ion=0&num=10"},{"$f":"IF(ISBLANK(M$4),\"\",IF(ISBLANK($B9),\"\",\"https://\"&$D$2&\"/search?q=\"&SUBSTITUTE(M$4&\" \"&$B9,\" \",\"+\")&\"&ion=0&num=10\"))","v":"https://www.google.fr/search?q=comment+faire+kouign+amann&ion=0&num=10"},{"$f":"IF(ISBLANK(N$4),\"\",IF(ISBLANK($B9),\"\",\"https://\"&$D$2&\"/search?q=\"&SUBSTITUTE(N$4&\" \"&$B9,\" \",\"+\")&\"&ion=0&num=10\"))","v":"https://www.google.fr/search?q=comment+apprendre+kouign+amann&ion=0&num=10"},{"$f":"IF(ISBLANK(O$4),\"\",IF(ISBLANK($B9),\"\",\"https://\"&$D$2&\"/search?q=\"&SUBSTITUTE(O$4&\" \"&$B9,\" \",\"+\")&\"&ion=0&num=10\"))","v":"https://www.google.fr/search?q=comment+savoir+kouign+amann&ion=0&num=10"}]
[null,"chouchenn",null,null,null,null,null,null,null,null,null,null,null,null,null,null,"https://www.google.fr/search?q=quoi+chouchenn&ion=0&num=10","https://www.google.fr/search?q=comment+chouchenn&ion=0&num=10","https://www.google.fr/search?q=combien+chouchenn&ion=0&num=10","https://www.google.fr/search?q=pourquoi+chouchenn&ion=0&num=10","https://www.google.fr/search?q=quand+chouchenn&ion=0&num=10","https://www.google.fr/search?q=où+chouchenn&ion=0&num=10","https://www.google.fr/search?q=quel+chouchenn&ion=0&num=10","https://www.google.fr/search?q=quel+meilleur+chouchenn&ion=0&num=10","https://www.google.fr/search?q=qui+chouchenn&ion=0&num=10","https://www.google.fr/search?q=comment+faire+chouchenn&ion=0&num=10","https://www.google.fr/search?q=comment+apprendre+chouchenn&ion=0&num=10","https://www.google.fr/search?q=comment+savoir+chouchenn&ion=0&num=10"]
[null,"kig ha farz",null,null,null,null,null,null,null,null,null,null,null,null,null,null,"https://www.google.fr/search?q=quoi+kig+ha+farz&ion=0&num=10","https://www.google.fr/search?q=comment+kig+ha+farz&ion=0&num=10","https://www.google.fr/search?q=combien+kig+ha+farz&ion=0&num=10","https://www.google.fr/search?q=pourquoi+kig+ha+farz&ion=0&num=10","https://www.google.fr/search?q=quand+kig+ha+farz&ion=0&num=10","https://www.google.fr/search?q=où+kig+ha+farz&ion=0&num=10","https://www.google.fr/search?q=quel+kig+ha+farz&ion=0&num=10","https://www.google.fr/search?q=quel+meilleur+kig+ha+farz&ion=0&num=10","https://www.google.fr/search?q=qui+kig+ha+farz&ion=0&num=10","https://www.google.fr/search?q=comment+faire+kig+ha+farz&ion=0&num=10","https://www.google.fr/search?q=comment+apprendre+kig+ha+farz&ion=0&num=10","https://www.google.fr/search?q=comment+savoir+kig+ha+farz&ion=0&num=10"]
[null,"farz billig",null,null,null,null,null,null,null,null,null,null,null,null,null,null,"https://www.google.fr/search?q=quoi+farz+billig&ion=0&num=10","https://www.google.fr/search?q=comment+farz+billig&ion=0&num=10","https://www.google.fr/search?q=combien+farz+billig&ion=0&num=10","https://www.google.fr/search?q=pourquoi+farz+billig&ion=0&num=10","https://www.google.fr/search?q=quand+farz+billig&ion=0&num=10","https://www.google.fr/search?q=où+farz+billig&ion=0&num=10","https://www.google.fr/search?q=quel+farz+billig&ion=0&num=10","https://www.google.fr/search?q=quel+meilleur+farz+billig&ion=0&num=10","https://www.google.fr/search?q=qui+farz+billig&ion=0&num=10","https://www.google.fr/search?q=comment+faire+farz+billig&ion=0&num=10","https://www.google.fr/search?q=comment+apprendre+farz+billig&ion=0&num=10","https://www.google.fr/search?q=comment+savoir+farz+billig&ion=0&num=10"]
[null,null,null,null,null,null,null,null,null,null,null,null,null,null,null,null,"","","","","","","","","","","",""]
[null,null,null,null,null,null,null,null,null,null,null,null,null,null,null,null,"","","","","","","","","","","",""]
[null,null,null,null,null,null,null,null,null,null,null,null,null,null,null,null,"","","","","","","","","","","",""]
[null,null,null,null,null,null,null,null,null,null,null,null,null,null,null,null,"","","","","","","","","","","",""]
[null,null,null,null,null,null,null,null,null,null,null,null,null,null,null,null,"","","","","","","","","","","",""]
[null,null,null,null,null,null,null,null,null,null,null,null,null,null,null,null,"","","","","","","","","","","",""]
[null,null,null,null,null,null,null,null,null,null,null,null,null,null,null,null,"","","","","","","","","","","",""]
[null,null,null,null,null,null,null,null,null,null,null,null,null,null,null,null,"","","","","","","","","","","",""]
[null,null,null,null,null,null,null,null,null,null,null,null,null,null,null,null,"","","","","","","","","","","",""]
[null,null,null,null,null,null,null,null,null,null,null,null,null,null,null,null,"","","","","","","","","","","",""]
[null,null,null,null,null,null,null,null,null,null,null,null,null,null,null,null,"","","","","","","","","","","",""]
[null,null,null,null,null,null,null,null,null,null,null,null,null,null,null,null,"","","","","","","","","","","",""]
[null,null,null,null,null,null,null,null,null,null,null,null,null,null,null,null,"","","","","","","","","","","",""]
[null,null,null,null,null,null,null,null,null,null,null,null,null,null,null,null,"","","","","","","","","","","",""]
[null,null,null,null,null,null,null,null,null,null,null,null,null,null,null,null,"","","","","","","","","","","",""]
[null,null,null,null,null,null,null,null,null,null,null,null,null,null,null,null,"","","","","","","","","","","",""]
[null,null,null,null,null,null,null,null,null,null,null,null,null,null,null,null,"","","","","","","","","","","",""]
[null,null,null,null,null,null,null,null,null,null,null,null,null,null,null,null,"","","","","","","","","","","",""]
[null,null,null,null,null,null,null,null,null,null,null,null,null,null,null,null,"","","","","","","","","","","",""]
[null,null,null,null,null,null,null,null,null,null,null,null,null,null,null,null,"","","","","","","","","","","",""]
[null,null,null,null,null,null,null,null,null,null,null,null,null,null,null,null,"","","","","","","","","","","",""]
[null,null,null,null,null,null,null,null,null,null,null,null,null,null,null,null,"","","","","","","","","","","",""]
[null,null,null,null,null,null,null,null,null,null,null,null,null,null,null,null,"","","","","","","","","","","",""]
[null,null,null,null,null,null,null,null,null,null,null,null,null,null,null,null,"","","","","","","","","","","",""]
[null,null,null,null,null,null,null,null,null,null,null,null,null,null,null,null,"","","","","","","","","","","",""]
[null,null,null,null,null,null,null,null,null,null,null,null,null,null,null,null,"","","","","","","","","","","",""]
[null,null,null,null,null,null,null,null,null,null,null,null,null,null,null,null,"","","","","","","","","","","",""]
[null,null,null,null,null,null,null,null,null,null,null,null,null,null,null,null,"","","","","","","","","","","",""]
[null,null,null,null,null,null,null,null,null,null,null,null,null,null,null,null,"","","","","","","","","","","",""]
[null,null,null,null,null,null,null,null,null,null,null,null,null,null,null,null,"","","","","","","","","","","",""]
[null,null,null,null,null,null,null,null,null,null,null,null,null,null,null,null,"","","","","","","","","","","",""]
[null,null,null,null,null,null,null,null,null,null,null,null,null,null,null,null,"","","","","","","","","","","",""]
[null,null,null,null,null,null,null,null,null,null,null,null,null,null,null,null,"","","","","","","","","","","",""]
[null,null,null,null,null,null,null,null,null,null,null,null,null,null,null,null,"","","","","","","","","","","",""]
[null,null,null,null,null,null,null,null,null,null,null,null,null,null,null,null,"","","","","","","","","","","",""]
[null,null,null,null,null,null,null,null,null,null,null,null,null,null,null,null,"","","","","","","","","","","",""]
[null,null,null,null,null,null,null,null,null,null,null,null,null,null,null,null,"","","","","","","","","","","",""]
[null,null,null,null,null,null,null,null,null,null,null,null,null,null,null,null,"","","","","","","","","","","",""]
[null,null,null,null,null,null,null,null,null,null,null,null,null,null,null,null,"","","","","","","","","","","",""]
[null,null,null,null,null,null,null,null,null,null,null,null,null,null,null,null,"","","","","","","","","","","",""]
[null,null,null,null,null,null,null,null,null,null,null,null,null,null,null,null,"","","","","","","","","","","",""]
[null,null,null,null,null,null,null,null,null,null,null,null,null,null,null,null,"","","","","","","","","","","",""]
[null,null,null,null,null,null,null,null,null,null,null,null,null,null,null,null,"","","","","","","","","","","",""]
[null,null,null,null,null,null,null,null,null,null,null,null,null,null,null,null,"","","","","","","","","","","",""]
[null,null,null,null,null,null,null,null,null,null,null,null,null,null,null,null,"","","","","","","","","","","",""]
[null,null,null,null,null,null,null,null,null,null,null,null,null,null,null,null,"","","","","","","","","","","",""]
[null,null,null,null,null,null,null,null,null,null,null,null,null,null,null,null,"","","","","","","","","","","",""]
[null,null,null,null,null,null,null,null,null,null,null,null,null,null,null,null,"","","","","","","","","","","",""]
[null,null,null,null,null,null,null,null,null,null,null,null,null,null,null,null,"","","","","","","","","","","",""]
[null,null,null,null,null,null,null,null,null,null,null,null,null,null,null,null,"","","","","","","","","","","",""]
[null,null,null,null,null,null,null,null,null,null,null,null,null,null,null,null,"","","","","","","","","","","",""]
[null,null,null,null,null,null,null,null,null,null,null,null,null,null,null,null,"","","","","","","","","","","",""]
[null,null,null,null,null,null,null,null,null,null,null,null,null,null,null,null,"","","","","","","","","","","",""]
[null,null,null,null,null,null,null,null,null,null,null,null,null,null,null,null,"","","","","","","","","","","",""]
[null,null,null,null,null,null,null,null,null,null,null,null,null,null,null,null,"","","","","","","","","","","",""]
[null,null,null,null,null,null,null,null,null,null,null,null,null,null,null,null,"","","","","","","","","","","",""]
[null,null,null,null,null,null,null,null,null,null,null,null,null,null,null,null,"","","","","","","","","","","",""]
[null,null,null,null,null,null,null,null,null,null,null,null,null,null,null,null,"","","","","","","","","","","",""]
[null,null,null,null,null,null,null,null,null,null,null,null,null,null,null,null,"","","","","","","","","","","",""]
[null,null,null,null,null,null,null,null,null,null,null,null,null,null,null,null,"","","","","","","","","","","",""]
[null,null,null,null,null,null,null,null,null,null,null,null,null,null,null,null,{"$f":"IF(ISBLANK(D$4),\"\",IF(ISBLANK($B73),\"\",\"https://\"&$D$2&\"/search?q=\"&SUBSTITUTE(D$4&\" \"&$B73,\" \",\"+\")&\"&ion=0&num=10\"))","v":""},{"$f":"IF(ISBLANK(E$4),\"\",IF(ISBLANK($B73),\"\",\"https://\"&$D$2&\"/search?q=\"&SUBSTITUTE(E$4&\" \"&$B73,\" \",\"+\")&\"&ion=0&num=10\"))","v":""},{"$f":"IF(ISBLANK(F$4),\"\",IF(ISBLANK($B73),\"\",\"https://\"&$D$2&\"/search?q=\"&SUBSTITUTE(F$4&\" \"&$B73,\" \",\"+\")&\"&ion=0&num=10\"))","v":""},{"$f":"IF(ISBLANK(G$4),\"\",IF(ISBLANK($B73),\"\",\"https://\"&$D$2&\"/search?q=\"&SUBSTITUTE(G$4&\" \"&$B73,\" \",\"+\")&\"&ion=0&num=10\"))","v":""},{"$f":"IF(ISBLANK(H$4),\"\",IF(ISBLANK($B73),\"\",\"https://\"&$D$2&\"/search?q=\"&SUBSTITUTE(H$4&\" \"&$B73,\" \",\"+\")&\"&ion=0&num=10\"))","v":""},{"$f":"IF(ISBLANK(I$4),\"\",IF(ISBLANK($B73),\"\",\"https://\"&$D$2&\"/search?q=\"&SUBSTITUTE(I$4&\" \"&$B73,\" \",\"+\")&\"&ion=0&num=10\"))","v":""},{"$f":"IF(ISBLANK(J$4),\"\",IF(ISBLANK($B73),\"\",\"https://\"&$D$2&\"/search?q=\"&SUBSTITUTE(J$4&\" \"&$B73,\" \",\"+\")&\"&ion=0&num=10\"))","v":""},{"$f":"IF(ISBLANK(K$4),\"\",IF(ISBLANK($B73),\"\",\"https://\"&$D$2&\"/search?q=\"&SUBSTITUTE(K$4&\" \"&$B73,\" \",\"+\")&\"&ion=0&num=10\"))","v":""},{"$f":"IF(ISBLANK(L$4),\"\",IF(ISBLANK($B73),\"\",\"https://\"&$D$2&\"/search?q=\"&SUBSTITUTE(L$4&\" \"&$B73,\" \",\"+\")&\"&ion=0&num=10\"))","v":""},{"$f":"IF(ISBLANK(M$4),\"\",IF(ISBLANK($B73),\"\",\"https://\"&$D$2&\"/search?q=\"&SUBSTITUTE(M$4&\" \"&$B73,\" \",\"+\")&\"&ion=0&num=10\"))","v":""},{"$f":"IF(ISBLANK(N$4),\"\",IF(ISBLANK($B73),\"\",\"https://\"&$D$2&\"/search?q=\"&SUBSTITUTE(N$4&\" \"&$B73,\" \",\"+\")&\"&ion=0&num=10\"))","v":""},{"$f":"IF(ISBLANK(O$4),\"\",IF(ISBLANK($B73),\"\",\"https://\"&$D$2&\"/search?q=\"&SUBSTITUTE(O$4&\" \"&$B73,\" \",\"+\")&\"&ion=0&num=10\"))","v":""}]
[null,null,null,null,null,null,null,null,null,null,null,null,null,null,null,null,"","","","","","","","","","","",""]
[null,null,null,null,null,null,null,null,null,null,null,null,null,null,null,null,"","","","","","","","","","","",""]
[null,null,null,null,null,null,null,null,null,null,null,null,null,null,null,null,"","","","","","","","","","","",""]
[null,null,null,null,null,null,null,null,null,null,null,null,null,null,null,null,"","","","","","","","","","","",""]
[null,null,null,null,null,null,null,null,null,null,null,null,null,null,null,null,"","","","","","","","","","","",""]
[null,null,null,null,null,null,null,null,null,null,null,null,null,null,null,null,"","","","","","","","","","","",""]
[null,null,null,null,null,null,null,null,null,null,null,null,null,null,null,null,"","","","","","","","","","","",""]
[null,null,null,null,null,null,null,null,null,null,null,null,null,null,null,null,"","","","","","","","","","","",""]
[null,null,null,null,null,null,null,null,null,null,null,null,null,null,null,null,"","","","","","","","","","","",""]
[null,null,null,null,null,null,null,null,null,null,null,null,null,null,null,null,"","","","","","","","","","","",""]
[null,null,null,null,null,null,null,null,null,null,null,null,null,null,null,null,"","","","","","","","","","","",""]
[null,null,null,null,null,null,null,null,null,null,null,null,null,null,null,null,"","","","","","","","","","","",""]
[null,null,null,null,null,null,null,null,null,null,null,null,null,null,null,null,"","","","","","","","","","","",""]
[null,null,null,null,null,null,null,null,null,null,null,null,null,null,null,null,"","","","","","","","","","","",""]
[null,null,null,null,null,null,null,null,null,null,null,null,null,null,null,null,"","","","","","","","","","","",""]
[null,null,null,null,null,null,null,null,null,null,null,null,null,null,null,null,"","","","","","","","","","","",""]
[null,null,null,null,null,null,null,null,null,null,null,null,null,null,null,null,"","","","","","","","","","","",""]
[null,null,null,null,null,null,null,null,null,null,null,null,null,null,null,null,"","","","","","","","","","","",""]
[null,null,null,null,null,null,null,null,null,null,null,null,null,null,null,null,"","","","","","","","","","","",""]
[null,null,null,null,null,null,null,null,null,null,null,null,null,null,null,null,"","","","","","","","","","","",""]
[null,null,null,null,null,null,null,null,null,null,null,null,null,null,null,null,"","","","","","","","","","","",""]
[null,null,null,null,null,null,null,null,null,null,null,null,null,null,null,null,"","","","","","","","","","","",""]
[null,null,null,null,null,null,null,null,null,null,null,null,null,null,null,null,"","","","","","","","","","","",""]
[null,null,null,null,null,null,null,null,null,null,null,null,null,null,null,null,"","","","","","","","","","","",""]
[null,null,null,null,null,null,null,null,null,null,null,null,null,null,null,null,"","","","","","","","","","","",""]
[null,null,null,null,null,null,null,null,null,null,null,null,null,null,null,null,"","","","","","","","","","","",""]
[null,null,null,null,null,null,null,null,null,null,null,null,null,null,null,null,"","","","","","","","","","","",""]
[null,null,null,null,null,null,null,null,null,null,null,null,null,null,null,null,"","","","","","","","","","","",""]
[null,null,null,null,null,null,null,null,null,null,null,null,null,null,null,null,"","","","","","","","","","","",""]
[null,null,null,null,null,null,null,null,null,null,null,null,null,null,null,null,"","","","","","","","","","","",""]
[null,null,null,null,null,null,null,null,null,null,null,null,null,null,null,null,"","","","","","","","","","","",""]
[null,null,null,null,null,null,null,null,null,null,null,null,null,null,null,null,"","","","","","","","","","","",""]
[null,null,null,null,null,null,null,null,null,null,null,null,null,null,null,null,"","","","","","","","","","","",""]
[null,null,null,null,null,null,null,null,null,null,null,null,null,null,null,null,"","","","","","","","","","","",""]
[null,null,null,null,null,null,null,null,null,null,null,null,null,null,null,null,"","","","","","","","","","","",""]
[null,null,null,null,null,null,null,null,null,null,null,null,null,null,null,null,"","","","","","","","","","","",""]
[null,null,null,null,null,null,null,null,null,null,null,null,null,null,null,null,"","","","","","","","","","","",""]
[null,null,null,null,null,null,null,null,null,null,null,null,null,null,null,null,"","","","","","","","","","","",""]
[null,null,null,null,null,null,null,null,null,null,null,null,null,null,null,null,"","","","","","","","","","","",""]
[null,null,null,null,null,null,null,null,null,null,null,null,null,null,null,null,"","","","","","","","","","","",""]
[null,null,null,null,null,null,null,null,null,null,null,null,null,null,null,null,"","","","","","","","","","","",""]
[null,null,null,null,null,null,null,null,null,null,null,null,null,null,null,null,"","","","","","","","","","","",""]
[null,null,null,null,null,null,null,null,null,null,null,null,null,null,null,null,"","","","","","","","","","","",""]
[null,null,null,null,null,null,null,null,null,null,null,null,null,null,null,null,"","","","","","","","","","","",""]
[null,null,null,null,null,null,null,null,null,null,null,null,null,null,null,null,"","","","","","","","","","","",""]
[null,null,null,null,null,null,null,null,null,null,null,null,null,null,null,null,"","","","","","","","","","","",""]
[null,null,null,null,null,null,null,null,null,null,null,null,null,null,null,null,"","","","","","","","","","","",""]
[null,null,null,null,null,null,null,null,null,null,null,null,null,null,null,null,"","","","","","","","","","","",""]
[null,null,null,null,null,null,null,null,null,null,null,null,null,null,null,null,"","","","","","","","","","","",""]
[null,null,null,null,null,null,null,null,null,null,null,null,null,null,null,null,"","","","","","","","","","","",""]
[null,null,null,null,null,null,null,null,null,null,null,null,null,null,null,null,"","","","","","","","","","","",""]
[null,null,null,null,null,null,null,null,null,null,null,null,null,null,null,null,"","","","","","","","","","","",""]
[null,null,null,null,null,null,null,null,null,null,null,null,null,null,null,null,"","","","","","","","","","","",""]
[null,null,null,null,null,null,null,null,null,null,null,null,null,null,null,null,"","","","","","","","","","","",""]
[null,null,null,null,null,null,null,null,null,null,null,null,null,null,null,null,"","","","","","","","","","","",""]
[null,null,null,null,null,null,null,null,null,null,null,null,null,null,null,null,"","","","","","","","","","","",""]
[null,null,null,null,null,null,null,null,null,null,null,null,null,null,null,null,"","","","","","","","","","","",""]
[null,null,null,null,null,null,null,null,null,null,null,null,null,null,null,null,"","","","","","","","","","","",""]
[null,null,null,null,null,null,null,null,null,null,null,null,null,null,null,null,"","","","","","","","","","","",""]
[null,null,null,null,null,null,null,null,null,null,null,null,null,null,null,null,"","","","","","","","","","","",""]
[null,null,null,null,null,null,null,null,null,null,null,null,null,null,null,null,"","","","","","","","","","","",""]
[null,null,null,null,null,null,null,null,null,null,null,null,null,null,null,null,"","","","","","","","","","","",""]
[null,null,null,null,null,null,null,null,null,null,null,null,null,null,null,null,"","","","","","","","","","","",""]
[null,null,null,null,null,null,null,null,null,null,null,null,null,null,null,null,{"$f":"IF(ISBLANK(D$4),\"\",IF(ISBLANK($B137),\"\",\"https://\"&$D$2&\"/search?q=\"&SUBSTITUTE(D$4&\" \"&$B137,\" \",\"+\")&\"&ion=0&num=10\"))","v":""},{"$f":"IF(ISBLANK(E$4),\"\",IF(ISBLANK($B137),\"\",\"https://\"&$D$2&\"/search?q=\"&SUBSTITUTE(E$4&\" \"&$B137,\" \",\"+\")&\"&ion=0&num=10\"))","v":""},{"$f":"IF(ISBLANK(F$4),\"\",IF(ISBLANK($B137),\"\",\"https://\"&$D$2&\"/search?q=\"&SUBSTITUTE(F$4&\" \"&$B137,\" \",\"+\")&\"&ion=0&num=10\"))","v":""},{"$f":"IF(ISBLANK(G$4),\"\",IF(ISBLANK($B137),\"\",\"https://\"&$D$2&\"/search?q=\"&SUBSTITUTE(G$4&\" \"&$B137,\" \",\"+\")&\"&ion=0&num=10\"))","v":""},{"$f":"IF(ISBLANK(H$4),\"\",IF(ISBLANK($B137),\"\",\"https://\"&$D$2&\"/search?q=\"&SUBSTITUTE(H$4&\" \"&$B137,\" \",\"+\")&\"&ion=0&num=10\"))","v":""},{"$f":"IF(ISBLANK(I$4),\"\",IF(ISBLANK($B137),\"\",\"https://\"&$D$2&\"/search?q=\"&SUBSTITUTE(I$4&\" \"&$B137,\" \",\"+\")&\"&ion=0&num=10\"))","v":""},{"$f":"IF(ISBLANK(J$4),\"\",IF(ISBLANK($B137),\"\",\"https://\"&$D$2&\"/search?q=\"&SUBSTITUTE(J$4&\" \"&$B137,\" \",\"+\")&\"&ion=0&num=10\"))","v":""},{"$f":"IF(ISBLANK(K$4),\"\",IF(ISBLANK($B137),\"\",\"https://\"&$D$2&\"/search?q=\"&SUBSTITUTE(K$4&\" \"&$B137,\" \",\"+\")&\"&ion=0&num=10\"))","v":""},{"$f":"IF(ISBLANK(L$4),\"\",IF(ISBLANK($B137),\"\",\"https://\"&$D$2&\"/search?q=\"&SUBSTITUTE(L$4&\" \"&$B137,\" \",\"+\")&\"&ion=0&num=10\"))","v":""},{"$f":"IF(ISBLANK(M$4),\"\",IF(ISBLANK($B137),\"\",\"https://\"&$D$2&\"/search?q=\"&SUBSTITUTE(M$4&\" \"&$B137,\" \",\"+\")&\"&ion=0&num=10\"))","v":""},{"$f":"IF(ISBLANK(N$4),\"\",IF(ISBLANK($B137),\"\",\"https://\"&$D$2&\"/search?q=\"&SUBSTITUTE(N$4&\" \"&$B137,\" \",\"+\")&\"&ion=0&num=10\"))","v":""},{"$f":"IF(ISBLANK(O$4),\"\",IF(ISBLANK($B137),\"\",\"https://\"&$D$2&\"/search?q=\"&SUBSTITUTE(O$4&\" \"&$B137,\" \",\"+\")&\"&ion=0&num=10\"))","v":""}]
[null,null,null,null,null,null,null,null,null,null,null,null,null,null,null,null,"","","","","","","","","","","",""]
[null,null,null,null,null,null,null,null,null,null,null,null,null,null,null,null,"","","","","","","","","","","",""]
[null,null,null,null,null,null,null,null,null,null,null,null,null,null,null,null,"","","","","","","","","","","",""]
[null,null,null,null,null,null,null,null,null,null,null,null,null,null,null,null,"","","","","","","","","","","",""]
[null,null,null,null,null,null,null,null,null,null,null,null,null,null,null,null,"","","","","","","","","","","",""]
[null,null,null,null,null,null,null,null,null,null,null,null,null,null,null,null,"","","","","","","","","","","",""]
[null,null,null,null,null,null,null,null,null,null,null,null,null,null,null,null,"","","","","","","","","","","",""]
[null,null,null,null,null,null,null,null,null,null,null,null,null,null,null,null,"","","","","","","","","","","",""]
[null,null,null,null,null,null,null,null,null,null,null,null,null,null,null,null,"","","","","","","","","","","",""]
[null,null,null,null,null,null,null,null,null,null,null,null,null,null,null,null,"","","","","","","","","","","",""]
[null,null,null,null,null,null,null,null,null,null,null,null,null,null,null,null,"","","","","","","","","","","",""]
[null,null,null,null,null,null,null,null,null,null,null,null,null,null,null,null,"","","","","","","","","","","",""]
[null,null,null,null,null,null,null,null,null,null,null,null,null,null,null,null,"","","","","","","","","","","",""]
[null,null,null,null,null,null,null,null,null,null,null,null,null,null,null,null,"","","","","","","","","","","",""]
[null,null,null,null,null,null,null,null,null,null,null,null,null,null,null,null,"","","","","","","","","","","",""]
[null,null,null,null,null,null,null,null,null,null,null,null,null,null,null,null,"","","","","","","","","","","",""]
[null,null,null,null,null,null,null,null,null,null,null,null,null,null,null,null,"","","","","","","","","","","",""]
[null,null,null,null,null,null,null,null,null,null,null,null,null,null,null,null,"","","","","","","","","","","",""]
[null,null,null,null,null,null,null,null,null,null,null,null,null,null,null,null,"","","","","","","","","","","",""]
[null,null,null,null,null,null,null,null,null,null,null,null,null,null,null,null,"","","","","","","","","","","",""]
[null,null,null,null,null,null,null,null,null,null,null,null,null,null,null,null,"","","","","","","","","","","",""]
[null,null,null,null,null,null,null,null,null,null,null,null,null,null,null,null,"","","","","","","","","","","",""]
[null,null,null,null,null,null,null,null,null,null,null,null,null,null,null,null,"","","","","","","","","","","",""]
[null,null,null,null,null,null,null,null,null,null,null,null,null,null,null,null,"","","","","","","","","","","",""]
[null,null,null,null,null,null,null,null,null,null,null,null,null,null,null,null,"","","","","","","","","","","",""]
[null,null,null,null,null,null,null,null,null,null,null,null,null,null,null,null,"","","","","","","","","","","",""]
[null,null,null,null,null,null,null,null,null,null,null,null,null,null,null,null,"","","","","","","","","","","",""]
[null,null,null,null,null,null,null,null,null,null,null,null,null,null,null,null,"","","","","","","","","","","",""]
[null,null,null,null,null,null,null,null,null,null,null,null,null,null,null,null,"","","","","","","","","","","",""]
[null,null,null,null,null,null,null,null,null,null,null,null,null,null,null,null,"","","","","","","","","","","",""]
[null,null,null,null,null,null,null,null,null,null,null,null,null,null,null,null,"","","","","","","","","","","",""]
[null,null,null,null,null,null,null,null,null,null,null,null,null,null,null,null,"","","","","","","","","","","",""]
[null,null,null,null,null,null,null,null,null,null,null,null,null,null,null,null,"","","","","","","","","","","",""]
[null,null,null,null,null,null,null,null,null,null,null,null,null,null,null,null,"","","","","","","","","","","",""]
[null,null,null,null,null,null,null,null,null,null,null,null,null,null,null,null,"","","","","","","","","","","",""]
[null,null,null,null,null,null,null,null,null,null,null,null,null,null,null,null,"","","","","","","","","","","",""]
[null,null,null,null,null,null,null,null,null,null,null,null,null,null,null,null,"","","","","","","","","","","",""]
[null,null,null,null,null,null,null,null,null,null,null,null,null,null,null,null,"","","","","","","","","","","",""]
[null,null,null,null,null,null,null,null,null,null,null,null,null,null,null,null,"","","","","","","","","","","",""]
[null,null,null,null,null,null,null,null,null,null,null,null,null,null,null,null,"","","","","","","","","","","",""]
[null,null,null,null,null,null,null,null,null,null,null,null,null,null,null,null,"","","","","","","","","","","",""]
[null,null,null,null,null,null,null,null,null,null,null,null,null,null,null,null,"","","","","","","","","","","",""]
[null,null,null,null,null,null,null,null,null,null,null,null,null,null,null,null,"","","","","","","","","","","",""]
[null,null,null,null,null,null,null,null,null,null,null,null,null,null,null,null,"","","","","","","","","","","",""]
[null,null,null,null,null,null,null,null,null,null,null,null,null,null,null,null,"","","","","","","","","","","",""]
[null,null,null,null,null,null,null,null,null,null,null,null,null,null,null,null,"","","","","","","","","","","",""]
[null,null,null,null,null,null,null,null,null,null,null,null,null,null,null,null,"","","","","","","","","","","",""]
[null,null,null,null,null,null,null,null,null,null,null,null,null,null,null,null,"","","","","","","","","","","",""]
[null,null,null,null,null,null,null,null,null,null,null,null,null,null,null,null,"","","","","","","","","","","",""]
[null,null,null,null,null,null,null,null,null,null,null,null,null,null,null,null,"","","","","","","","","","","",""]
[null,null,null,null,null,null,null,null,null,null,null,null,null,null,null,null,"","","","","","","","","","","",""]
[null,null,null,null,null,null,null,null,null,null,null,null,null,null,null,null,"","","","","","","","","","","",""]
[null,null,null,null,null,null,null,null,null,null,null,null,null,null,null,null,"","","","","","","","","","","",""]
[null,null,null,null,null,null,null,null,null,null,null,null,null,null,null,null,"","","","","","","","","","","",""]
[null,null,null,null,null,null,null,null,null,null,null,null,null,null,null,null,"","","","","","","","","","","",""]
[null,null,null,null,null,null,null,null,null,null,null,null,null,null,null,null,"","","","","","","","","","","",""]
[null,null,null,null,null,null,null,null,null,null,null,null,null,null,null,null,"","","","","","","","","","","",""]
[null,null,null,null,null,null,null,null,null,null,null,null,null,null,null,null,"","","","","","","","","","","",""]
[null,null,null,null,null,null,null,null,null,null,null,null,null,null,null,null,"","","","","","","","","","","",""]
[null,null,null,null,null,null,null,null,null,null,null,null,null,null,null,null,"","","","","","","","","","","",""]
[null,null,null,null,null,null,null,null,null,null,null,null,null,null,null,null,"","","","","","","","","","","",""]
[null,null,null,null,null,null,null,null,null,null,null,null,null,null,null,null,"","","","","","","","","","","",""]
[null,null,null,null,null,null,null,null,null,null,null,null,null,null,null,null,"","","","","","","","","","","",""]
[null,null,null,null,null,null,null,null,null,null,null,null,null,null,null,null,{"$f":"IF(ISBLANK(D$4),\"\",IF(ISBLANK($B201),\"\",\"https://\"&$D$2&\"/search?q=\"&SUBSTITUTE(D$4&\" \"&$B201,\" \",\"+\")&\"&ion=0&num=10\"))","v":""},{"$f":"IF(ISBLANK(E$4),\"\",IF(ISBLANK($B201),\"\",\"https://\"&$D$2&\"/search?q=\"&SUBSTITUTE(E$4&\" \"&$B201,\" \",\"+\")&\"&ion=0&num=10\"))","v":""},{"$f":"IF(ISBLANK(F$4),\"\",IF(ISBLANK($B201),\"\",\"https://\"&$D$2&\"/search?q=\"&SUBSTITUTE(F$4&\" \"&$B201,\" \",\"+\")&\"&ion=0&num=10\"))","v":""},{"$f":"IF(ISBLANK(G$4),\"\",IF(ISBLANK($B201),\"\",\"https://\"&$D$2&\"/search?q=\"&SUBSTITUTE(G$4&\" \"&$B201,\" \",\"+\")&\"&ion=0&num=10\"))","v":""},{"$f":"IF(ISBLANK(H$4),\"\",IF(ISBLANK($B201),\"\",\"https://\"&$D$2&\"/search?q=\"&SUBSTITUTE(H$4&\" \"&$B201,\" \",\"+\")&\"&ion=0&num=10\"))","v":""},{"$f":"IF(ISBLANK(I$4),\"\",IF(ISBLANK($B201),\"\",\"https://\"&$D$2&\"/search?q=\"&SUBSTITUTE(I$4&\" \"&$B201,\" \",\"+\")&\"&ion=0&num=10\"))","v":""},{"$f":"IF(ISBLANK(J$4),\"\",IF(ISBLANK($B201),\"\",\"https://\"&$D$2&\"/search?q=\"&SUBSTITUTE(J$4&\" \"&$B201,\" \",\"+\")&\"&ion=0&num=10\"))","v":""},{"$f":"IF(ISBLANK(K$4),\"\",IF(ISBLANK($B201),\"\",\"https://\"&$D$2&\"/search?q=\"&SUBSTITUTE(K$4&\" \"&$B201,\" \",\"+\")&\"&ion=0&num=10\"))","v":""},{"$f":"IF(ISBLANK(L$4),\"\",IF(ISBLANK($B201),\"\",\"https://\"&$D$2&\"/search?q=\"&SUBSTITUTE(L$4&\" \"&$B201,\" \",\"+\")&\"&ion=0&num=10\"))","v":""},{"$f":"IF(ISBLANK(M$4),\"\",IF(ISBLANK($B201),\"\",\"https://\"&$D$2&\"/search?q=\"&SUBSTITUTE(M$4&\" \"&$B201,\" \",\"+\")&\"&ion=0&num=10\"))","v":""},{"$f":"IF(ISBLANK(N$4),\"\",IF(ISBLANK($B201),\"\",\"https://\"&$D$2&\"/search?q=\"&SUBSTITUTE(N$4&\" \"&$B201,\" \",\"+\")&\"&ion=0&num=10\"))","v":""},{"$f":"IF(ISBLANK(O$4),\"\",IF(ISBLANK($B201),\"\",\"https://\"&$D$2&\"/search?q=\"&SUBSTITUTE(O$4&\" \"&$B201,\" \",\"+\")&\"&ion=0&num=10\"))","v":""}]
[null,null,null,null,null,null,null,null,null,null,null,null,null,null,null,null,"","","","","","","","","","","",""]
[null,null,null,null,null,null,null,null,null,null,null,null,null,null,null,null,"","","","","","","","","","","",""]
[null,null,null,null,null,null,null,null,null,null,null,null,null,null,null,null,"","","","","","","","","","","",""]
[null,null,null,null,null,null,null,null,null,null,null,null,null,null,null,null,"","","","","","","","","","","",""]
[null,null,null,null,null,null,null,null,null,null,null,null,null,null,null,null,"","","","","","","","","","","",""]
[null,null,null,null,null,null,null,null,null,null,null,null,null,null,null,null,"","","","","","","","","","","",""]
[null,null,null,null,null,null,null,null,null,null,null,null,null,null,null,null,"","","","","","","","","","","",""]
[null,null,null,null,null,null,null,null,null,null,null,null,null,null,null,null,"","","","","","","","","","","",""]
[null,null,null,null,null,null,null,null,null,null,null,null,null,null,null,null,"","","","","","","","","","","",""]
[null,null,null,null,null,null,null,null,null,null,null,null,null,null,null,null,"","","","","","","","","","","",""]
[null,null,null,null,null,null,null,null,null,null,null,null,null,null,null,null,"","","","","","","","","","","",""]
[null,null,null,null,null,null,null,null,null,null,null,null,null,null,null,null,"","","","","","","","","","","",""]
[null,null,null,null,null,null,null,null,null,null,null,null,null,null,null,null,"","","","","","","","","","","",""]
[null,null,null,null,null,null,null,null,null,null,null,null,null,null,null,null,"","","","","","","","","","","",""]
[null,null,null,null,null,null,null,null,null,null,null,null,null,null,null,null,"","","","","","","","","","","",""]
[null,null,null,null,null,null,null,null,null,null,null,null,null,null,null,null,"","","","","","","","","","","",""]
[null,null,null,null,null,null,null,null,null,null,null,null,null,null,null,null,"","","","","","","","","","","",""]
[null,null,null,null,null,null,null,null,null,null,null,null,null,null,null,null,"","","","","","","","","","","",""]
[null,null,null,null,null,null,null,null,null,null,null,null,null,null,null,null,"","","","","","","","","","","",""]
[null,null,null,null,null,null,null,null,null,null,null,null,null,null,null,null,"","","","","","","","","","","",""]
[null,null,null,null,null,null,null,null,null,null,null,null,null,null,null,null,"","","","","","","","","","","",""]
[null,null,null,null,null,null,null,null,null,null,null,null,null,null,null,null,"","","","","","","","","","","",""]
[null,null,null,null,null,null,null,null,null,null,null,null,null,null,null,null,"","","","","","","","","","","",""]
[null,null,null,null,null,null,null,null,null,null,null,null,null,null,null,null,"","","","","","","","","","","",""]
[null,null,null,null,null,null,null,null,null,null,null,null,null,null,null,null,"","","","","","","","","","","",""]
[null,null,null,null,null,null,null,null,null,null,null,null,null,null,null,null,"","","","","","","","","","","",""]
[null,null,null,null,null,null,null,null,null,null,null,null,null,null,null,null,"","","","","","","","","","","",""]
[null,null,null,null,null,null,null,null,null,null,null,null,null,null,null,null,"","","","","","","","","","","",""]
[null,null,null,null,null,null,null,null,null,null,null,null,null,null,null,null,"","","","","","","","","","","",""]
[null,null,null,null,null,null,null,null,null,null,null,null,null,null,null,null,"","","","","","","","","","","",""]
[null,null,null,null,null,null,null,null,null,null,null,null,null,null,null,null,"","","","","","","","","","","",""]
[null,null,null,null,null,null,null,null,null,null,null,null,null,null,null,null,"","","","","","","","","","","",""]
[null,null,null,null,null,null,null,null,null,null,null,null,null,null,null,null,"","","","","","","","","","","",""]
[null,null,null,null,null,null,null,null,null,null,null,null,null,null,null,null,"","","","","","","","","","","",""]
[null,null,null,null,null,null,null,null,null,null,null,null,null,null,null,null,"","","","","","","","","","","",""]
[null,null,null,null,null,null,null,null,null,null,null,null,null,null,null,null,"","","","","","","","","","","",""]
[null,null,null,null,null,null,null,null,null,null,null,null,null,null,null,null,"","","","","","","","","","","",""]
[null,null,null,null,null,null,null,null,null,null,null,null,null,null,null,null,"","","","","","","","","","","",""]
[null,null,null,null,null,null,null,null,null,null,null,null,null,null,null,null,"","","","","","","","","","","",""]
[null,null,null,null,null,null,null,null,null,null,null,null,null,null,null,null,"","","","","","","","","","","",""]
[null,null,null,null,null,null,null,null,null,null,null,null,null,null,null,null,"","","","","","","","","","","",""]
[null,null,null,null,null,null,null,null,null,null,null,null,null,null,null,null,"","","","","","","","","","","",""]
[null,null,null,null,null,null,null,null,null,null,null,null,null,null,null,null,"","","","","","","","","","","",""]
[null,null,null,null,null,null,null,null,null,null,null,null,null,null,null,null,"","","","","","","","","","","",""]
[null,null,null,null,null,null,null,null,null,null,null,null,null,null,null,null,"","","","","","","","","","","",""]
[null,null,null,null,null,null,null,null,null,null,null,null,null,null,null,null,"","","","","","","","","","","",""]
[null,null,null,null,null,null,null,null,null,null,null,null,null,null,null,null,"","","","","","","","","","","",""]
[null,null,null,null,null,null,null,null,null,null,null,null,null,null,null,null,"","","","","","","","","","","",""]
[null,null,null,null,null,null,null,null,null,null,null,null,null,null,null,null,"","","","","","","","","","","",""]
[null,null,null,null,null,null,null,null,null,null,null,null,null,null,null,null,"","","","","","","","","","","",""]
[null,null,null,null,null,null,null,null,null,null,null,null,null,null,null,null,"","","","","","","","","","","",""]
[null,null,null,null,null,null,null,null,null,null,null,null,null,null,null,null,"","","","","","","","","","","",""]
[null,null,null,null,null,null,null,null,null,null,null,null,null,null,null,null,"","","","","","","","","","","",""]
[null,null,null,null,null,null,null,null,null,null,null,null,null,null,null,null,"","","","","","","","","","","",""]
[null,null,null,null,null,null,null,null,null,null,null,null,null,null,null,null,"","","","","","","","","","","",""]
[null,null,null,null,null,null,null,null,null,null,null,null,null,null,null,null,"","","","","","","","","","","",""]
[null,null,null,null,null,null,null,null,null,null,null,null,null,null,null,null,"","","","","","","","","","","",""]
[null,null,null,null,null,null,null,null,null,null,null,null,null,null,null,null,"","","","","","","","","","","",""]
[null,null,null,null,null,null,null,null,null,null,null,null,null,null,null,null,"","","","","","","","","","","",""]
[null,null,null,null,null,null,null,null,null,null,null,null,null,null,null,null,"","","","","","","","","","","",""]
[null,null,null,null,null,null,null,null,null,null,null,null,null,null,null,null,"","","","","","","","","","","",""]
[null,null,null,null,null,null,null,null,null,null,null,null,null,null,null,null,"","","","","","","","","","","",""]
[null,null,null,null,null,null,null,null,null,null,null,null,null,null,null,null,"","","","","","","","","","","",""]
[null,null,null,null,null,null,null,null,null,null,null,null,null,null,null,null,{"$f":"IF(ISBLANK(D$4),\"\",IF(ISBLANK($B265),\"\",\"https://\"&$D$2&\"/search?q=\"&SUBSTITUTE(D$4&\" \"&$B265,\" \",\"+\")&\"&ion=0&num=10\"))","v":""},{"$f":"IF(ISBLANK(E$4),\"\",IF(ISBLANK($B265),\"\",\"https://\"&$D$2&\"/search?q=\"&SUBSTITUTE(E$4&\" \"&$B265,\" \",\"+\")&\"&ion=0&num=10\"))","v":""},{"$f":"IF(ISBLANK(F$4),\"\",IF(ISBLANK($B265),\"\",\"https://\"&$D$2&\"/search?q=\"&SUBSTITUTE(F$4&\" \"&$B265,\" \",\"+\")&\"&ion=0&num=10\"))","v":""},{"$f":"IF(ISBLANK(G$4),\"\",IF(ISBLANK($B265),\"\",\"https://\"&$D$2&\"/search?q=\"&SUBSTITUTE(G$4&\" \"&$B265,\" \",\"+\")&\"&ion=0&num=10\"))","v":""},{"$f":"IF(ISBLANK(H$4),\"\",IF(ISBLANK($B265),\"\",\"https://\"&$D$2&\"/search?q=\"&SUBSTITUTE(H$4&\" \"&$B265,\" \",\"+\")&\"&ion=0&num=10\"))","v":""},{"$f":"IF(ISBLANK(I$4),\"\",IF(ISBLANK($B265),\"\",\"https://\"&$D$2&\"/search?q=\"&SUBSTITUTE(I$4&\" \"&$B265,\" \",\"+\")&\"&ion=0&num=10\"))","v":""},{"$f":"IF(ISBLANK(J$4),\"\",IF(ISBLANK($B265),\"\",\"https://\"&$D$2&\"/search?q=\"&SUBSTITUTE(J$4&\" \"&$B265,\" \",\"+\")&\"&ion=0&num=10\"))","v":""},{"$f":"IF(ISBLANK(K$4),\"\",IF(ISBLANK($B265),\"\",\"https://\"&$D$2&\"/search?q=\"&SUBSTITUTE(K$4&\" \"&$B265,\" \",\"+\")&\"&ion=0&num=10\"))","v":""},{"$f":"IF(ISBLANK(L$4),\"\",IF(ISBLANK($B265),\"\",\"https://\"&$D$2&\"/search?q=\"&SUBSTITUTE(L$4&\" \"&$B265,\" \",\"+\")&\"&ion=0&num=10\"))","v":""},{"$f":"IF(ISBLANK(M$4),\"\",IF(ISBLANK($B265),\"\",\"https://\"&$D$2&\"/search?q=\"&SUBSTITUTE(M$4&\" \"&$B265,\" \",\"+\")&\"&ion=0&num=10\"))","v":""},{"$f":"IF(ISBLANK(N$4),\"\",IF(ISBLANK($B265),\"\",\"https://\"&$D$2&\"/search?q=\"&SUBSTITUTE(N$4&\" \"&$B265,\" \",\"+\")&\"&ion=0&num=10\"))","v":""},{"$f":"IF(ISBLANK(O$4),\"\",IF(ISBLANK($B265),\"\",\"https://\"&$D$2&\"/search?q=\"&SUBSTITUTE(O$4&\" \"&$B265,\" \",\"+\")&\"&ion=0&num=10\"))","v":""}]
[null,null,null,null,null,null,null,null,null,null,null,null,null,null,null,null,"","","","","","","","","","","",""]
[null,null,null,null,null,null,null,null,null,null,null,null,null,null,null,null,"","","","","","","","","","","",""]
[null,null,null,null,null,null,null,null,null,null,null,null,null,null,null,null,"","","","","","","","","","","",""]
[null,null,null,null,null,null,null,null,null,null,null,null,null,null,null,null,"","","","","","","","","","","",""]
[null,null,null,null,null,null,null,null,null,null,null,null,null,null,null,null,"","","","","","","","","","","",""]
[null,null,null,null,null,null,null,null,null,null,null,null,null,null,null,null,"","","","","","","","","","","",""]
[null,null,null,null,null,null,null,null,null,null,null,null,null,null,null,null,"","","","","","","","","","","",""]
[null,null,null,null,null,null,null,null,null,null,null,null,null,null,null,null,"","","","","","","","","","","",""]
[null,null,null,null,null,null,null,null,null,null,null,null,null,null,null,null,"","","","","","","","","","","",""]
[null,null,null,null,null,null,null,null,null,null,null,null,null,null,null,null,"","","","","","","","","","","",""]
[null,null,null,null,null,null,null,null,null,null,null,null,null,null,null,null,"","","","","","","","","","","",""]
[null,null,null,null,null,null,null,null,null,null,null,null,null,null,null,null,"","","","","","","","","","","",""]
[null,null,null,null,null,null,null,null,null,null,null,null,null,null,null,null,"","","","","","","","","","","",""]
[null,null,null,null,null,null,null,null,null,null,null,null,null,null,null,null,"","","","","","","","","","","",""]
[null,null,null,null,null,null,null,null,null,null,null,null,null,null,null,null,"","","","","","","","","","","",""]
[null,null,null,null,null,null,null,null,null,null,null,null,null,null,null,null,"","","","","","","","","","","",""]
[null,null,null,null,null,null,null,null,null,null,null,null,null,null,null,null,"","","","","","","","","","","",""]
[null,null,null,null,null,null,null,null,null,null,null,null,null,null,null,null,"","","","","","","","","","","",""]
[null,null,null,null,null,null,null,null,null,null,null,null,null,null,null,null,"","","","","","","","","","","",""]
[null,null,null,null,null,null,null,null,null,null,null,null,null,null,null,null,"","","","","","","","","","","",""]
[null,null,null,null,null,null,null,null,null,null,null,null,null,null,null,null,"","","","","","","","","","","",""]
[null,null,null,null,null,null,null,null,null,null,null,null,null,null,null,null,"","","","","","","","","","","",""]
[null,null,null,null,null,null,null,null,null,null,null,null,null,null,null,null,"","","","","","","","","","","",""]
[null,null,null,null,null,null,null,null,null,null,null,null,null,null,null,null,"","","","","","","","","","","",""]
[null,null,null,null,null,null,null,null,null,null,null,null,null,null,null,null,"","","","","","","","","","","",""]
[null,null,null,null,null,null,null,null,null,null,null,null,null,null,null,null,"","","","","","","","","","","",""]
[null,null,null,null,null,null,null,null,null,null,null,null,null,null,null,null,"","","","","","","","","","","",""]
[null,null,null,null,null,null,null,null,null,null,null,null,null,null,null,null,"","","","","","","","","","","",""]
[null,null,null,null,null,null,null,null,null,null,null,null,null,null,null,null,"","","","","","","","","","","",""]
[null,null,null,null,null,null,null,null,null,null,null,null,null,null,null,null,"","","","","","","","","","","",""]
[null,null,null,null,null,null,null,null,null,null,null,null,null,null,null,null,"","","","","","","","","","","",""]
[null,null,null,null,null,null,null,null,null,null,null,null,null,null,null,null,"","","","","","","","","","","",""]
[null,null,null,null,null,null,null,null,null,null,null,null,null,null,null,null,"","","","","","","","","","","",""]
[null,null,null,null,null,null,null,null,null,null,null,null,null,null,null,null,"","","","","","","","","","","",""]
[null,null,null,null,null,null,null,null,null,null,null,null,null,null,null,null,"","","","","","","","","","","",""]
[null,null,null,null,null,null,null,null,null,null,null,null,null,null,null,null,"","","","","","","","","","","",""]
[null,null,null,null,null,null,null,null,null,null,null,null,null,null,null,null,"","","","","","","","","","","",""]
[null,null,null,null,null,null,null,null,null,null,null,null,null,null,null,null,"","","","","","","","","","","",""]
[null,null,null,null,null,null,null,null,null,null,null,null,null,null,null,null,"","","","","","","","","","","",""]
[null,null,null,null,null,null,null,null,null,null,null,null,null,null,null,null,"","","","","","","","","","","",""]
[null,null,null,null,null,null,null,null,null,null,null,null,null,null,null,null,"","","","","","","","","","","",""]
[null,null,null,null,null,null,null,null,null,null,null,null,null,null,null,null,"","","","","","","","","","","",""]
[null,null,null,null,null,null,null,null,null,null,null,null,null,null,null,null,"","","","","","","","","","","",""]
[null,null,null,null,null,null,null,null,null,null,null,null,null,null,null,null,"","","","","","","","","","","",""]
[null,null,null,null,null,null,null,null,null,null,null,null,null,null,null,null,"","","","","","","","","","","",""]
[null,null,null,null,null,null,null,null,null,null,null,null,null,null,null,null,"","","","","","","","","","","",""]
[null,null,null,null,null,null,null,null,null,null,null,null,null,null,null,null,"","","","","","","","","","","",""]
[null,null,null,null,null,null,null,null,null,null,null,null,null,null,null,null,"","","","","","","","","","","",""]
[null,null,null,null,null,null,null,null,null,null,null,null,null,null,null,null,"","","","","","","","","","","",""]
[null,null,null,null,null,null,null,null,null,null,null,null,null,null,null,null,"","","","","","","","","","","",""]
[null,null,null,null,null,null,null,null,null,null,null,null,null,null,null,null,"","","","","","","","","","","",""]
[null,null,null,null,null,null,null,null,null,null,null,null,null,null,null,null,"","","","","","","","","","","",""]
[null,null,null,null,null,null,null,null,null,null,null,null,null,null,null,null,"","","","","","","","","","","",""]
[null,null,null,null,null,null,null,null,null,null,null,null,null,null,null,null,"","","","","","","","","","","",""]
[null,null,null,null,null,null,null,null,null,null,null,null,null,null,null,null,"","","","","","","","","","","",""]
[null,null,null,null,null,null,null,null,null,null,null,null,null,null,null,null,"","","","","","","","","","","",""]
[null,null,null,null,null,null,null,null,null,null,null,null,null,null,null,null,"","","","","","","","","","","",""]
[null,null,null,null,null,null,null,null,null,null,null,null,null,null,null,null,"","","","","","","","","","","",""]
[null,null,null,null,null,null,null,null,null,null,null,null,null,null,null,null,"","","","","","","","","","","",""]
[null,null,null,null,null,null,null,null,null,null,null,null,null,null,null,null,"","","","","","","","","","","",""]
[null,null,null,null,null,null,null,null,null,null,null,null,null,null,null,null,"","","","","","","","","","","",""]
[null,null,null,null,null,null,null,null,null,null,null,null,null,null,null,null,"","","","","","","","","","","",""]
[null,null,null,null,null,null,null,null,null,null,null,null,null,null,null,null,"","","","","","","","","","","",""]
[null,null,null,null,null,null,null,null,null,null,null,null,null,null,null,null,{"$f":"IF(ISBLANK(D$4),\"\",IF(ISBLANK($B329),\"\",\"https://\"&$D$2&\"/search?q=\"&SUBSTITUTE(D$4&\" \"&$B329,\" \",\"+\")&\"&ion=0&num=10\"))","v":""},{"$f":"IF(ISBLANK(E$4),\"\",IF(ISBLANK($B329),\"\",\"https://\"&$D$2&\"/search?q=\"&SUBSTITUTE(E$4&\" \"&$B329,\" \",\"+\")&\"&ion=0&num=10\"))","v":""},{"$f":"IF(ISBLANK(F$4),\"\",IF(ISBLANK($B329),\"\",\"https://\"&$D$2&\"/search?q=\"&SUBSTITUTE(F$4&\" \"&$B329,\" \",\"+\")&\"&ion=0&num=10\"))","v":""},{"$f":"IF(ISBLANK(G$4),\"\",IF(ISBLANK($B329),\"\",\"https://\"&$D$2&\"/search?q=\"&SUBSTITUTE(G$4&\" \"&$B329,\" \",\"+\")&\"&ion=0&num=10\"))","v":""},{"$f":"IF(ISBLANK(H$4),\"\",IF(ISBLANK($B329),\"\",\"https://\"&$D$2&\"/search?q=\"&SUBSTITUTE(H$4&\" \"&$B329,\" \",\"+\")&\"&ion=0&num=10\"))","v":""},{"$f":"IF(ISBLANK(I$4),\"\",IF(ISBLANK($B329),\"\",\"https://\"&$D$2&\"/search?q=\"&SUBSTITUTE(I$4&\" \"&$B329,\" \",\"+\")&\"&ion=0&num=10\"))","v":""},{"$f":"IF(ISBLANK(J$4),\"\",IF(ISBLANK($B329),\"\",\"https://\"&$D$2&\"/search?q=\"&SUBSTITUTE(J$4&\" \"&$B329,\" \",\"+\")&\"&ion=0&num=10\"))","v":""},{"$f":"IF(ISBLANK(K$4),\"\",IF(ISBLANK($B329),\"\",\"https://\"&$D$2&\"/search?q=\"&SUBSTITUTE(K$4&\" \"&$B329,\" \",\"+\")&\"&ion=0&num=10\"))","v":""},{"$f":"IF(ISBLANK(L$4),\"\",IF(ISBLANK($B329),\"\",\"https://\"&$D$2&\"/search?q=\"&SUBSTITUTE(L$4&\" \"&$B329,\" \",\"+\")&\"&ion=0&num=10\"))","v":""},{"$f":"IF(ISBLANK(M$4),\"\",IF(ISBLANK($B329),\"\",\"https://\"&$D$2&\"/search?q=\"&SUBSTITUTE(M$4&\" \"&$B329,\" \",\"+\")&\"&ion=0&num=10\"))","v":""},{"$f":"IF(ISBLANK(N$4),\"\",IF(ISBLANK($B329),\"\",\"https://\"&$D$2&\"/search?q=\"&SUBSTITUTE(N$4&\" \"&$B329,\" \",\"+\")&\"&ion=0&num=10\"))","v":""},{"$f":"IF(ISBLANK(O$4),\"\",IF(ISBLANK($B329),\"\",\"https://\"&$D$2&\"/search?q=\"&SUBSTITUTE(O$4&\" \"&$B329,\" \",\"+\")&\"&ion=0&num=10\"))","v":""}]
[null,null,null,null,null,null,null,null,null,null,null,null,null,null,null,null,"","","","","","","","","","","",""]
[null,null,null,null,null,null,null,null,null,null,null,null,null,null,null,null,"","","","","","","","","","","",""]
[null,null,null,null,null,null,null,null,null,null,null,null,null,null,null,null,"","","","","","","","","","","",""]
[null,null,null,null,null,null,null,null,null,null,null,null,null,null,null,null,"","","","","","","","","","","",""]
[null,null,null,null,null,null,null,null,null,null,null,null,null,null,null,null,"","","","","","","","","","","",""]
[null,null,null,null,null,null,null,null,null,null,null,null,null,null,null,null,"","","","","","","","","","","",""]
[null,null,null,null,null,null,null,null,null,null,null,null,null,null,null,null,"","","","","","","","","","","",""]
[null,null,null,null,null,null,null,null,null,null,null,null,null,null,null,null,"","","","","","","","","","","",""]
[null,null,null,null,null,null,null,null,null,null,null,null,null,null,null,null,"","","","","","","","","","","",""]
[null,null,null,null,null,null,null,null,null,null,null,null,null,null,null,null,"","","","","","","","","","","",""]
[null,null,null,null,null,null,null,null,null,null,null,null,null,null,null,null,"","","","","","","","","","","",""]
[null,null,null,null,null,null,null,null,null,null,null,null,null,null,null,null,"","","","","","","","","","","",""]
[null,null,null,null,null,null,null,null,null,null,null,null,null,null,null,null,"","","","","","","","","","","",""]
[null,null,null,null,null,null,null,null,null,null,null,null,null,null,null,null,"","","","","","","","","","","",""]
[null,null,null,null,null,null,null,null,null,null,null,null,null,null,null,null,"","","","","","","","","","","",""]
[null,null,null,null,null,null,null,null,null,null,null,null,null,null,null,null,"","","","","","","","","","","",""]
[null,null,null,null,null,null,null,null,null,null,null,null,null,null,null,null,"","","","","","","","","","","",""]
[null,null,null,null,null,null,null,null,null,null,null,null,null,null,null,null,"","","","","","","","","","","",""]
[null,null,null,null,null,null,null,null,null,null,null,null,null,null,null,null,"","","","","","","","","","","",""]
[null,null,null,null,null,null,null,null,null,null,null,null,null,null,null,null,"","","","","","","","","","","",""]
[null,null,null,null,null,null,null,null,null,null,null,null,null,null,null,null,"","","","","","","","","","","",""]
[null,null,null,null,null,null,null,null,null,null,null,null,null,null,null,null,"","","","","","","","","","","",""]
[null,null,null,null,null,null,null,null,null,null,null,null,null,null,null,null,"","","","","","","","","","","",""]
[null,null,null,null,null,null,null,null,null,null,null,null,null,null,null,null,"","","","","","","","","","","",""]
[null,null,null,null,null,null,null,null,null,null,null,null,null,null,null,null,"","","","","","","","","","","",""]
[null,null,null,null,null,null,null,null,null,null,null,null,null,null,null,null,"","","","","","","","","","","",""]
[null,null,null,null,null,null,null,null,null,null,null,null,null,null,null,null,"","","","","","","","","","","",""]
[null,null,null,null,null,null,null,null,null,null,null,null,null,null,null,null,"","","","","","","","","","","",""]
[null,null,null,null,null,null,null,null,null,null,null,null,null,null,null,null,"","","","","","","","","","","",""]
[null,null,null,null,null,null,null,null,null,null,null,null,null,null,null,null,"","","","","","","","","","","",""]
[null,null,null,null,null,null,null,null,null,null,null,null,null,null,null,null,"","","","","","","","","","","",""]
[null,null,null,null,null,null,null,null,null,null,null,null,null,null,null,null,"","","","","","","","","","","",""]
[null,null,null,null,null,null,null,null,null,null,null,null,null,null,null,null,"","","","","","","","","","","",""]
[null,null,null,null,null,null,null,null,null,null,null,null,null,null,null,null,"","","","","","","","","","","",""]
[null,null,null,null,null,null,null,null,null,null,null,null,null,null,null,null,"","","","","","","","","","","",""]
[null,null,null,null,null,null,null,null,null,null,null,null,null,null,null,null,"","","","","","","","","","","",""]
[null,null,null,null,null,null,null,null,null,null,null,null,null,null,null,null,"","","","","","","","","","","",""]
[null,null,null,null,null,null,null,null,null,null,null,null,null,null,null,null,"","","","","","","","","","","",""]
[null,null,null,null,null,null,null,null,null,null,null,null,null,null,null,null,"","","","","","","","","","","",""]
[null,null,null,null,null,null,null,null,null,null,null,null,null,null,null,null,"","","","","","","","","","","",""]
[null,null,null,null,null,null,null,null,null,null,null,null,null,null,null,null,"","","","","","","","","","","",""]
[null,null,null,null,null,null,null,null,null,null,null,null,null,null,null,null,"","","","","","","","","","","",""]
[null,null,null,null,null,null,null,null,null,null,null,null,null,null,null,null,"","","","","","","","","","","",""]
[null,null,null,null,null,null,null,null,null,null,null,null,null,null,null,null,"","","","","","","","","","","",""]
[null,null,null,null,null,null,null,null,null,null,null,null,null,null,null,null,"","","","","","","","","","","",""]
[null,null,null,null,null,null,null,null,null,null,null,null,null,null,null,null,"","","","","","","","","","","",""]
[null,null,null,null,null,null,null,null,null,null,null,null,null,null,null,null,"","","","","","","","","","","",""]
[null,null,null,null,null,null,null,null,null,null,null,null,null,null,null,null,"","","","","","","","","","","",""]
[null,null,null,null,null,null,null,null,null,null,null,null,null,null,null,null,"","","","","","","","","","","",""]
[null,null,null,null,null,null,null,null,null,null,null,null,null,null,null,null,"","","","","","","","","","","",""]
[null,null,null,null,null,null,null,null,null,null,null,null,null,null,null,null,"","","","","","","","","","","",""]
[null,null,null,null,null,null,null,null,null,null,null,null,null,null,null,null,"","","","","","","","","","","",""]
[null,null,null,null,null,null,null,null,null,null,null,null,null,null,null,null,"","","","","","","","","","","",""]
[null,null,null,null,null,null,null,null,null,null,null,null,null,null,null,null,"","","","","","","","","","","",""]
[null,null,null,null,null,null,null,null,null,null,null,null,null,null,null,null,"","","","","","","","","","","",""]
[null,null,null,null,null,null,null,null,null,null,null,null,null,null,null,null,"","","","","","","","","","","",""]
[null,null,null,null,null,null,null,null,null,null,null,null,null,null,null,null,"","","","","","","","","","","",""]
[null,null,null,null,null,null,null,null,null,null,null,null,null,null,null,null,"","","","","","","","","","","",""]
[null,null,null,null,null,null,null,null,null,null,null,null,null,null,null,null,"","","","","","","","","","","",""]
[null,null,null,null,null,null,null,null,null,null,null,null,null,null,null,null,"","","","","","","","","","","",""]
[null,null,null,null,null,null,null,null,null,null,null,null,null,null,null,null,"","","","","","","","","","","",""]
[null,null,null,null,null,null,null,null,null,null,null,null,null,null,null,null,"","","","","","","","","","","",""]
[null,null,null,null,null,null,null,null,null,null,null,null,null,null,null,null,"","","","","","","","","","","",""]
[null,null,null,null,null,null,null,null,null,null,null,null,null,null,null,null,{"$f":"IF(ISBLANK(D$4),\"\",IF(ISBLANK($B393),\"\",\"https://\"&$D$2&\"/search?q=\"&SUBSTITUTE(D$4&\" \"&$B393,\" \",\"+\")&\"&ion=0&num=10\"))","v":""},{"$f":"IF(ISBLANK(E$4),\"\",IF(ISBLANK($B393),\"\",\"https://\"&$D$2&\"/search?q=\"&SUBSTITUTE(E$4&\" \"&$B393,\" \",\"+\")&\"&ion=0&num=10\"))","v":""},{"$f":"IF(ISBLANK(F$4),\"\",IF(ISBLANK($B393),\"\",\"https://\"&$D$2&\"/search?q=\"&SUBSTITUTE(F$4&\" \"&$B393,\" \",\"+\")&\"&ion=0&num=10\"))","v":""},{"$f":"IF(ISBLANK(G$4),\"\",IF(ISBLANK($B393),\"\",\"https://\"&$D$2&\"/search?q=\"&SUBSTITUTE(G$4&\" \"&$B393,\" \",\"+\")&\"&ion=0&num=10\"))","v":""},{"$f":"IF(ISBLANK(H$4),\"\",IF(ISBLANK($B393),\"\",\"https://\"&$D$2&\"/search?q=\"&SUBSTITUTE(H$4&\" \"&$B393,\" \",\"+\")&\"&ion=0&num=10\"))","v":""},{"$f":"IF(ISBLANK(I$4),\"\",IF(ISBLANK($B393),\"\",\"https://\"&$D$2&\"/search?q=\"&SUBSTITUTE(I$4&\" \"&$B393,\" \",\"+\")&\"&ion=0&num=10\"))","v":""},{"$f":"IF(ISBLANK(J$4),\"\",IF(ISBLANK($B393),\"\",\"https://\"&$D$2&\"/search?q=\"&SUBSTITUTE(J$4&\" \"&$B393,\" \",\"+\")&\"&ion=0&num=10\"))","v":""},{"$f":"IF(ISBLANK(K$4),\"\",IF(ISBLANK($B393),\"\",\"https://\"&$D$2&\"/search?q=\"&SUBSTITUTE(K$4&\" \"&$B393,\" \",\"+\")&\"&ion=0&num=10\"))","v":""},{"$f":"IF(ISBLANK(L$4),\"\",IF(ISBLANK($B393),\"\",\"https://\"&$D$2&\"/search?q=\"&SUBSTITUTE(L$4&\" \"&$B393,\" \",\"+\")&\"&ion=0&num=10\"))","v":""},{"$f":"IF(ISBLANK(M$4),\"\",IF(ISBLANK($B393),\"\",\"https://\"&$D$2&\"/search?q=\"&SUBSTITUTE(M$4&\" \"&$B393,\" \",\"+\")&\"&ion=0&num=10\"))","v":""},{"$f":"IF(ISBLANK(N$4),\"\",IF(ISBLANK($B393),\"\",\"https://\"&$D$2&\"/search?q=\"&SUBSTITUTE(N$4&\" \"&$B393,\" \",\"+\")&\"&ion=0&num=10\"))","v":""},{"$f":"IF(ISBLANK(O$4),\"\",IF(ISBLANK($B393),\"\",\"https://\"&$D$2&\"/search?q=\"&SUBSTITUTE(O$4&\" \"&$B393,\" \",\"+\")&\"&ion=0&num=10\"))","v":""}]
[null,null,null,null,null,null,null,null,null,null,null,null,null,null,null,null,"","","","","","","","","","","",""]
[null,null,null,null,null,null,null,null,null,null,null,null,null,null,null,null,"","","","","","","","","","","",""]
[null,null,null,null,null,null,null,null,null,null,null,null,null,null,null,null,"","","","","","","","","","","",""]
[null,null,null,null,null,null,null,null,null,null,null,null,null,null,null,null,"","","","","","","","","","","",""]
[null,null,null,null,null,null,null,null,null,null,null,null,null,null,null,null,"","","","","","","","","","","",""]
[null,null,null,null,null,null,null,null,null,null,null,null,null,null,null,null,"","","","","","","","","","","",""]
[null,null,null,null,null,null,null,null,null,null,null,null,null,null,null,null,"","","","","","","","","","","",""]
[null,null,null,null,null,null,null,null,null,null,null,null,null,null,null,null,"","","","","","","","","","","",""]
[null,null,null,null,null,null,null,null,null,null,null,null,null,null,null,null,"","","","","","","","","","","",""]
[null,null,null,null,null,null,null,null,null,null,null,null,null,null,null,null,"","","","","","","","","","","",""]
[null,null,null,null,null,null,null,null,null,null,null,null,null,null,null,null,"","","","","","","","","","","",""]
[null,null,null,null,null,null,null,null,null,null,null,null,null,null,null,null,"","","","","","","","","","","",""]
[null,null,null,null,null,null,null,null,null,null,null,null,null,null,null,null,"","","","","","","","","","","",""]
[null,null,null,null,null,null,null,null,null,null,null,null,null,null,null,null,"","","","","","","","","","","",""]
[null,null,null,null,null,null,null,null,null,null,null,null,null,null,null,null,"","","","","","","","","","","",""]
[null,null,null,null,null,null,null,null,null,null,null,null,null,null,null,null,"","","","","","","","","","","",""]
[null,null,null,null,null,null,null,null,null,null,null,null,null,null,null,null,"","","","","","","","","","","",""]
[null,null,null,null,null,null,null,null,null,null,null,null,null,null,null,null,"","","","","","","","","","","",""]
[null,null,null,null,null,null,null,null,null,null,null,null,null,null,null,null,"","","","","","","","","","","",""]
[null,null,null,null,null,null,null,null,null,null,null,null,null,null,null,null,"","","","","","","","","","","",""]
[null,null,null,null,null,null,null,null,null,null,null,null,null,null,null,null,"","","","","","","","","","","",""]
[null,null,null,null,null,null,null,null,null,null,null,null,null,null,null,null,"","","","","","","","","","","",""]
[null,null,null,null,null,null,null,null,null,null,null,null,null,null,null,null,"","","","","","","","","","","",""]
[null,null,null,null,null,null,null,null,null,null,null,null,null,null,null,null,"","","","","","","","","","","",""]
[null,null,null,null,null,null,null,null,null,null,null,null,null,null,null,null,"","","","","","","","","","","",""]
[null,null,null,null,null,null,null,null,null,null,null,null,null,null,null,null,"","","","","","","","","","","",""]
[null,null,null,null,null,null,null,null,null,null,null,null,null,null,null,null,"","","","","","","","","","","",""]
[null,null,null,null,null,null,null,null,null,null,null,null,null,null,null,null,"","","","","","","","","","","",""]
[null,null,null,null,null,null,null,null,null,null,null,null,null,null,null,null,"","","","","","","","","","","",""]
[null,null,null,null,null,null,null,null,null,null,null,null,null,null,null,null,"","","","","","","","","","","",""]
[null,null,null,null,null,null,null,null,null,null,null,null,null,null,null,null,"","","","","","","","","","","",""]
[null,null,null,null,null,null,null,null,null,null,null,null,null,null,null,null,"","","","","","","","","","","",""]
[null,null,null,null,null,null,null,null,null,null,null,null,null,null,null,null,"","","","","","","","","","","",""]
[null,null,null,null,null,null,null,null,null,null,null,null,null,null,null,null,"","","","","","","","","","","",""]
[null,null,null,null,null,null,null,null,null,null,null,null,null,null,null,null,"","","","","","","","","","","",""]
[null,null,null,null,null,null,null,null,null,null,null,null,null,null,null,null,"","","","","","","","","","","",""]
[null,null,null,null,null,null,null,null,null,null,null,null,null,null,null,null,"","","","","","","","","","","",""]
[null,null,null,null,null,null,null,null,null,null,null,null,null,null,null,null,"","","","","","","","","","","",""]
[null,null,null,null,null,null,null,null,null,null,null,null,null,null,null,null,"","","","","","","","","","","",""]
[null,null,null,null,null,null,null,null,null,null,null,null,null,null,null,null,"","","","","","","","","","","",""]
[null,null,null,null,null,null,null,null,null,null,null,null,null,null,null,null,"","","","","","","","","","","",""]
[null,null,null,null,null,null,null,null,null,null,null,null,null,null,null,null,"","","","","","","","","","","",""]
[null,null,null,null,null,null,null,null,null,null,null,null,null,null,null,null,"","","","","","","","","","","",""]
[null,null,null,null,null,null,null,null,null,null,null,null,null,null,null,null,"","","","","","","","","","","",""]
[null,null,null,null,null,null,null,null,null,null,null,null,null,null,null,null,"","","","","","","","","","","",""]
[null,null,null,null,null,null,null,null,null,null,null,null,null,null,null,null,"","","","","","","","","","","",""]
[null,null,null,null,null,null,null,null,null,null,null,null,null,null,null,null,"","","","","","","","","","","",""]
[null,null,null,null,null,null,null,null,null,null,null,null,null,null,null,null,"","","","","","","","","","","",""]
[null,null,null,null,null,null,null,null,null,null,null,null,null,null,null,null,"","","","","","","","","","","",""]
[null,null,null,null,null,null,null,null,null,null,null,null,null,null,null,null,"","","","","","","","","","","",""]
[null,null,null,null,null,null,null,null,null,null,null,null,null,null,null,null,"","","","","","","","","","","",""]
[null,null,null,null,null,null,null,null,null,null,null,null,null,null,null,null,"","","","","","","","","","","",""]
[null,null,null,null,null,null,null,null,null,null,null,null,null,null,null,null,"","","","","","","","","","","",""]
[null,null,null,null,null,null,null,null,null,null,null,null,null,null,null,null,"","","","","","","","","","","",""]
[null,null,null,null,null,null,null,null,null,null,null,null,null,null,null,null,"","","","","","","","","","","",""]
[null,null,null,null,null,null,null,null,null,null,null,null,null,null,null,null,"","","","","","","","","","","",""]
[null,null,null,null,null,null,null,null,null,null,null,null,null,null,null,null,"","","","","","","","","","","",""]
[null,null,null,null,null,null,null,null,null,null,null,null,null,null,null,null,"","","","","","","","","","","",""]
[null,null,null,null,null,null,null,null,null,null,null,null,null,null,null,null,"","","","","","","","","","","",""]
[null,null,null,null,null,null,null,null,null,null,null,null,null,null,null,null,"","","","","","","","","","","",""]
[null,null,null,null,null,null,null,null,null,null,null,null,null,null,null,null,"","","","","","","","","","","",""]
[null,null,null,null,null,null,null,null,null,null,null,null,null,null,null,null,"","","","","","","","","","","",""]
[null,null,null,null,null,null,null,null,null,null,null,null,null,null,null,null,"","","","","","","","","","","",""]
[null,null,null,null,null,null,null,null,null,null,null,null,null,null,null,null,{"$f":"IF(ISBLANK(D$4),\"\",IF(ISBLANK($B457),\"\",\"https://\"&$D$2&\"/search?q=\"&SUBSTITUTE(D$4&\" \"&$B457,\" \",\"+\")&\"&ion=0&num=10\"))","v":""},{"$f":"IF(ISBLANK(E$4),\"\",IF(ISBLANK($B457),\"\",\"https://\"&$D$2&\"/search?q=\"&SUBSTITUTE(E$4&\" \"&$B457,\" \",\"+\")&\"&ion=0&num=10\"))","v":""},{"$f":"IF(ISBLANK(F$4),\"\",IF(ISBLANK($B457),\"\",\"https://\"&$D$2&\"/search?q=\"&SUBSTITUTE(F$4&\" \"&$B457,\" \",\"+\")&\"&ion=0&num=10\"))","v":""},{"$f":"IF(ISBLANK(G$4),\"\",IF(ISBLANK($B457),\"\",\"https://\"&$D$2&\"/search?q=\"&SUBSTITUTE(G$4&\" \"&$B457,\" \",\"+\")&\"&ion=0&num=10\"))","v":""},{"$f":"IF(ISBLANK(H$4),\"\",IF(ISBLANK($B457),\"\",\"https://\"&$D$2&\"/search?q=\"&SUBSTITUTE(H$4&\" \"&$B457,\" \",\"+\")&\"&ion=0&num=10\"))","v":""},{"$f":"IF(ISBLANK(I$4),\"\",IF(ISBLANK($B457),\"\",\"https://\"&$D$2&\"/search?q=\"&SUBSTITUTE(I$4&\" \"&$B457,\" \",\"+\")&\"&ion=0&num=10\"))","v":""},{"$f":"IF(ISBLANK(J$4),\"\",IF(ISBLANK($B457),\"\",\"https://\"&$D$2&\"/search?q=\"&SUBSTITUTE(J$4&\" \"&$B457,\" \",\"+\")&\"&ion=0&num=10\"))","v":""},{"$f":"IF(ISBLANK(K$4),\"\",IF(ISBLANK($B457),\"\",\"https://\"&$D$2&\"/search?q=\"&SUBSTITUTE(K$4&\" \"&$B457,\" \",\"+\")&\"&ion=0&num=10\"))","v":""},{"$f":"IF(ISBLANK(L$4),\"\",IF(ISBLANK($B457),\"\",\"https://\"&$D$2&\"/search?q=\"&SUBSTITUTE(L$4&\" \"&$B457,\" \",\"+\")&\"&ion=0&num=10\"))","v":""},{"$f":"IF(ISBLANK(M$4),\"\",IF(ISBLANK($B457),\"\",\"https://\"&$D$2&\"/search?q=\"&SUBSTITUTE(M$4&\" \"&$B457,\" \",\"+\")&\"&ion=0&num=10\"))","v":""},{"$f":"IF(ISBLANK(N$4),\"\",IF(ISBLANK($B457),\"\",\"https://\"&$D$2&\"/search?q=\"&SUBSTITUTE(N$4&\" \"&$B457,\" \",\"+\")&\"&ion=0&num=10\"))","v":""},{"$f":"IF(ISBLANK(O$4),\"\",IF(ISBLANK($B457),\"\",\"https://\"&$D$2&\"/search?q=\"&SUBSTITUTE(O$4&\" \"&$B457,\" \",\"+\")&\"&ion=0&num=10\"))","v":""}]
[null,null,null,null,null,null,null,null,null,null,null,null,null,null,null,null,"","","","","","","","","","","",""]
[null,null,null,null,null,null,null,null,null,null,null,null,null,null,null,null,"","","","","","","","","","","",""]
[null,null,null,null,null,null,null,null,null,null,null,null,null,null,null,null,"","","","","","","","","","","",""]
[null,null,null,null,null,null,null,null,null,null,null,null,null,null,null,null,"","","","","","","","","","","",""]
[null,null,null,null,null,null,null,null,null,null,null,null,null,null,null,null,"","","","","","","","","","","",""]
[null,null,null,null,null,null,null,null,null,null,null,null,null,null,null,null,"","","","","","","","","","","",""]
[null,null,null,null,null,null,null,null,null,null,null,null,null,null,null,null,"","","","","","","","","","","",""]
[null,null,null,null,null,null,null,null,null,null,null,null,null,null,null,null,"","","","","","","","","","","",""]
[null,null,null,null,null,null,null,null,null,null,null,null,null,null,null,null,"","","","","","","","","","","",""]
[null,null,null,null,null,null,null,null,null,null,null,null,null,null,null,null,"","","","","","","","","","","",""]
[null,null,null,null,null,null,null,null,null,null,null,null,null,null,null,null,"","","","","","","","","","","",""]
[null,null,null,null,null,null,null,null,null,null,null,null,null,null,null,null,"","","","","","","","","","","",""]
[null,null,null,null,null,null,null,null,null,null,null,null,null,null,null,null,"","","","","","","","","","","",""]
[null,null,null,null,null,null,null,null,null,null,null,null,null,null,null,null,"","","","","","","","","","","",""]
[null,null,null,null,null,null,null,null,null,null,null,null,null,null,null,null,"","","","","","","","","","","",""]
[null,null,null,null,null,null,null,null,null,null,null,null,null,null,null,null,"","","","","","","","","","","",""]
[null,null,null,null,null,null,null,null,null,null,null,null,null,null,null,null,"","","","","","","","","","","",""]
[null,null,null,null,null,null,null,null,null,null,null,null,null,null,null,null,"","","","","","","","","","","",""]
[null,null,null,null,null,null,null,null,null,null,null,null,null,null,null,null,"","","","","","","","","","","",""]
[null,null,null,null,null,null,null,null,null,null,null,null,null,null,null,null,"","","","","","","","","","","",""]
[null,null,null,null,null,null,null,null,null,null,null,null,null,null,null,null,"","","","","","","","","","","",""]
[null,null,null,null,null,null,null,null,null,null,null,null,null,null,null,null,"","","","","","","","","","","",""]
[null,null,null,null,null,null,null,null,null,null,null,null,null,null,null,null,"","","","","","","","","","","",""]
[null,null,null,null,null,null,null,null,null,null,null,null,null,null,null,null,"","","","","","","","","","","",""]
[null,null,null,null,null,null,null,null,null,null,null,null,null,null,null,null,"","","","","","","","","","","",""]
[null,null,null,null,null,null,null,null,null,null,null,null,null,null,null,null,"","","","","","","","","","","",""]
[null,null,null,null,null,null,null,null,null,null,null,null,null,null,null,null,"","","","","","","","","","","",""]
[null,null,null,null,null,null,null,null,null,null,null,null,null,null,null,null,"","","","","","","","","","","",""]
[null,null,null,null,null,null,null,null,null,null,null,null,null,null,null,null,"","","","","","","","","","","",""]
[null,null,null,null,null,null,null,null,null,null,null,null,null,null,null,null,"","","","","","","","","","","",""]
[null,null,null,null,null,null,null,null,null,null,null,null,null,null,null,null,"","","","","","","","","","","",""]
[null,null,null,null,null,null,null,null,null,null,null,null,null,null,null,null,"","","","","","","","","","","",""]
[null,null,null,null,null,null,null,null,null,null,null,null,null,null,null,null,"","","","","","","","","","","",""]
[null,null,null,null,null,null,null,null,null,null,null,null,null,null,null,null,"","","","","","","","","","","",""]
[null,null,null,null,null,null,null,null,null,null,null,null,null,null,null,null,"","","","","","","","","","","",""]
[null,null,null,null,null,null,null,null,null,null,null,null,null,null,null,null,"","","","","","","","","","","",""]
[null,null,null,null,null,null,null,null,null,null,null,null,null,null,null,null,"","","","","","","","","","","",""]
[null,null,null,null,null,null,null,null,null,null,null,null,null,null,null,null,"","","","","","","","","","","",""]
[null,null,null,null,null,null,null,null,null,null,null,null,null,null,null,null,"","","","","","","","","","","",""]
[null,null,null,null,null,null,null,null,null,null,null,null,null,null,null,null,"","","","","","","","","","","",""]
[null,null,null,null,null,null,null,null,null,null,null,null,null,null,null,null,"","","","","","","","","","","",""]
[null,null,null,null,null,null,null,null,null,null,null,null,null,null,null,null,"","","","","","","","","","","",""]
[null,null,null,null,null,null,null,null,null,null,null,null,null,null,null,null,"","","","","","","","","","","",""]
[null,null,null,null,null,null,null,null,null,null,null,null,null,null,null,null,"","","","","","","","","","","",""]
[null,null,null,null,null,null,null,null,null,null,null,null,null,null,null,null,"","","","","","","","","","","",""]
[null,null,null,null,null,null,null,null,null,null,null,null,null,null,null,null,"","","","","","","","","","","",""]
[null,null,null,null,null,null,null,null,null,null,null,null,null,null,null,null,"","","","","","","","","","","",""]
[null,null,null,null,null,null,null,null,null,null,null,null,null,null,null,null,"","","","","","","","","","","",""]
[null,null,null,null,null,null,null,null,null,null,null,null,null,null,null,null,"","","","","","","","","","","",""]
[null,null,null,null,null,null,null,null,null,null,null,null,null,null,null,null,"","","","","","","","","","","",""]
[null,null,null,null,null,null,null,null,null,null,null,null,null,null,null,null,"","","","","","","","","","","",""]
[null,null,null,null,null,null,null,null,null,null,null,null,null,null,null,null,"","","","","","","","","","","",""]
[null,null,null,null,null,null,null,null,null,null,null,null,null,null,null,null,"","","","","","","","","","","",""]
[null,null,null,null,null,null,null,null,null,null,null,null,null,null,null,null,"","","","","","","","","","","",""]
[null,null,null,null,null,null,null,null,null,null,null,null,null,null,null,null,"","","","","","","","","","","",""]
[null,null,null,null,null,null,null,null,null,null,null,null,null,null,null,null,"","","","","","","","","","","",""]
[null,null,null,null,null,null,null,null,null,null,null,null,null,null,null,null,"","","","","","","","","","","",""]
[null,null,null,null,null,null,null,null,null,null,null,null,null,null,null,null,"","","","","","","","","","","",""]
[null,null,null,null,null,null,null,null,null,null,null,null,null,null,null,null,"","","","","","","","","","","",""]
[null,null,null,null,null,null,null,null,null,null,null,null,null,null,null,null,"","","","","","","","","","","",""]
[null,null,null,null,null,null,null,null,null,null,null,null,null,null,null,null,"","","","","","","","","","","",""]
[null,null,null,null,null,null,null,null,null,null,null,null,null,null,null,null,"","","","","","","","","","","",""]
[null,null,null,null,null,null,null,null,null,null,null,null,null,null,null,null,"","","","","","","","","","","",""]
[null,null,null,null,null,null,null,null,null,null,null,null,null,null,null,null,{"$f":"IF(ISBLANK(D$4),\"\",IF(ISBLANK($B521),\"\",\"https://\"&$D$2&\"/search?q=\"&SUBSTITUTE(D$4&\" \"&$B521,\" \",\"+\")&\"&ion=0&num=10\"))","v":""},{"$f":"IF(ISBLANK(E$4),\"\",IF(ISBLANK($B521),\"\",\"https://\"&$D$2&\"/search?q=\"&SUBSTITUTE(E$4&\" \"&$B521,\" \",\"+\")&\"&ion=0&num=10\"))","v":""},{"$f":"IF(ISBLANK(F$4),\"\",IF(ISBLANK($B521),\"\",\"https://\"&$D$2&\"/search?q=\"&SUBSTITUTE(F$4&\" \"&$B521,\" \",\"+\")&\"&ion=0&num=10\"))","v":""},{"$f":"IF(ISBLANK(G$4),\"\",IF(ISBLANK($B521),\"\",\"https://\"&$D$2&\"/search?q=\"&SUBSTITUTE(G$4&\" \"&$B521,\" \",\"+\")&\"&ion=0&num=10\"))","v":""},{"$f":"IF(ISBLANK(H$4),\"\",IF(ISBLANK($B521),\"\",\"https://\"&$D$2&\"/search?q=\"&SUBSTITUTE(H$4&\" \"&$B521,\" \",\"+\")&\"&ion=0&num=10\"))","v":""},{"$f":"IF(ISBLANK(I$4),\"\",IF(ISBLANK($B521),\"\",\"https://\"&$D$2&\"/search?q=\"&SUBSTITUTE(I$4&\" \"&$B521,\" \",\"+\")&\"&ion=0&num=10\"))","v":""},{"$f":"IF(ISBLANK(J$4),\"\",IF(ISBLANK($B521),\"\",\"https://\"&$D$2&\"/search?q=\"&SUBSTITUTE(J$4&\" \"&$B521,\" \",\"+\")&\"&ion=0&num=10\"))","v":""},{"$f":"IF(ISBLANK(K$4),\"\",IF(ISBLANK($B521),\"\",\"https://\"&$D$2&\"/search?q=\"&SUBSTITUTE(K$4&\" \"&$B521,\" \",\"+\")&\"&ion=0&num=10\"))","v":""},{"$f":"IF(ISBLANK(L$4),\"\",IF(ISBLANK($B521),\"\",\"https://\"&$D$2&\"/search?q=\"&SUBSTITUTE(L$4&\" \"&$B521,\" \",\"+\")&\"&ion=0&num=10\"))","v":""},{"$f":"IF(ISBLANK(M$4),\"\",IF(ISBLANK($B521),\"\",\"https://\"&$D$2&\"/search?q=\"&SUBSTITUTE(M$4&\" \"&$B521,\" \",\"+\")&\"&ion=0&num=10\"))","v":""},{"$f":"IF(ISBLANK(N$4),\"\",IF(ISBLANK($B521),\"\",\"https://\"&$D$2&\"/search?q=\"&SUBSTITUTE(N$4&\" \"&$B521,\" \",\"+\")&\"&ion=0&num=10\"))","v":""},{"$f":"IF(ISBLANK(O$4),\"\",IF(ISBLANK($B521),\"\",\"https://\"&$D$2&\"/search?q=\"&SUBSTITUTE(O$4&\" \"&$B521,\" \",\"+\")&\"&ion=0&num=10\"))","v":""}]
[null,null,null,null,null,null,null,null,null,null,null,null,null,null,null,null,"","","","","","","","","","","",""]
[null,null,null,null,null,null,null,null,null,null,null,null,null,null,null,null,"","","","","","","","","","","",""]
[null,null,null,null,null,null,null,null,null,null,null,null,null,null,null,null,"","","","","","","","","","","",""]
[null,null,null,null,null,null,null,null,null,null,null,null,null,null,null,null,"","","","","","","","","","","",""]
[null,null,null,null,null,null,null,null,null,null,null,null,null,null,null,null,"","","","","","","","","","","",""]
[null,null,null,null,null,null,null,null,null,null,null,null,null,null,null,null,"","","","","","","","","","","",""]
[null,null,null,null,null,null,null,null,null,null,null,null,null,null,null,null,"","","","","","","","","","","",""]
[null,null,null,null,null,null,null,null,null,null,null,null,null,null,null,null,"","","","","","","","","","","",""]
[null,null,null,null,null,null,null,null,null,null,null,null,null,null,null,null,"","","","","","","","","","","",""]
[null,null,null,null,null,null,null,null,null,null,null,null,null,null,null,null,"","","","","","","","","","","",""]
[null,null,null,null,null,null,null,null,null,null,null,null,null,null,null,null,"","","","","","","","","","","",""]
[null,null,null,null,null,null,null,null,null,null,null,null,null,null,null,null,"","","","","","","","","","","",""]
[null,null,null,null,null,null,null,null,null,null,null,null,null,null,null,null,"","","","","","","","","","","",""]
[null,null,null,null,null,null,null,null,null,null,null,null,null,null,null,null,"","","","","","","","","","","",""]
[null,null,null,null,null,null,null,null,null,null,null,null,null,null,null,null,"","","","","","","","","","","",""]
[null,null,null,null,null,null,null,null,null,null,null,null,null,null,null,null,"","","","","","","","","","","",""]
[null,null,null,null,null,null,null,null,null,null,null,null,null,null,null,null,"","","","","","","","","","","",""]
[null,null,null,null,null,null,null,null,null,null,null,null,null,null,null,null,"","","","","","","","","","","",""]
[null,null,null,null,null,null,null,null,null,null,null,null,null,null,null,null,"","","","","","","","","","","",""]
[null,null,null,null,null,null,null,null,null,null,null,null,null,null,null,null,"","","","","","","","","","","",""]
[null,null,null,null,null,null,null,null,null,null,null,null,null,null,null,null,"","","","","","","","","","","",""]
[null,null,null,null,null,null,null,null,null,null,null,null,null,null,null,null,"","","","","","","","","","","",""]
[null,null,null,null,null,null,null,null,null,null,null,null,null,null,null,null,"","","","","","","","","","","",""]
[null,null,null,null,null,null,null,null,null,null,null,null,null,null,null,null,"","","","","","","","","","","",""]
[null,null,null,null,null,null,null,null,null,null,null,null,null,null,null,null,"","","","","","","","","","","",""]
[null,null,null,null,null,null,null,null,null,null,null,null,null,null,null,null,"","","","","","","","","","","",""]
[null,null,null,null,null,null,null,null,null,null,null,null,null,null,null,null,"","","","","","","","","","","",""]
[null,null,null,null,null,null,null,null,null,null,null,null,null,null,null,null,"","","","","","","","","","","",""]
[null,null,null,null,null,null,null,null,null,null,null,null,null,null,null,null,"","","","","","","","","","","",""]
[null,null,null,null,null,null,null,null,null,null,null,null,null,null,null,null,"","","","","","","","","","","",""]
[null,null,null,null,null,null,null,null,null,null,null,null,null,null,null,null,"","","","","","","","","","","",""]
[null,null,null,null,null,null,null,null,null,null,null,null,null,null,null,null,"","","","","","","","","","","",""]
[null,null,null,null,null,null,null,null,null,null,null,null,null,null,null,null,"","","","","","","","","","","",""]
[null,null,null,null,null,null,null,null,null,null,null,null,null,null,null,null,"","","","","","","","","","","",""]
[null,null,null,null,null,null,null,null,null,null,null,null,null,null,null,null,"","","","","","","","","","","",""]
[null,null,null,null,null,null,null,null,null,null,null,null,null,null,null,null,"","","","","","","","","","","",""]
[null,null,null,null,null,null,null,null,null,null,null,null,null,null,null,null,"","","","","","","","","","","",""]
[null,null,null,null,null,null,null,null,null,null,null,null,null,null,null,null,"","","","","","","","","","","",""]
[null,null,null,null,null,null,null,null,null,null,null,null,null,null,null,null,"","","","","","","","","","","",""]
[null,null,null,null,null,null,null,null,null,null,null,null,null,null,null,null,"","","","","","","","","","","",""]
[null,null,null,null,null,null,null,null,null,null,null,null,null,null,null,null,"","","","","","","","","","","",""]
[null,null,null,null,null,null,null,null,null,null,null,null,null,null,null,null,"","","","","","","","","","","",""]
[null,null,null,null,null,null,null,null,null,null,null,null,null,null,null,null,"","","","","","","","","","","",""]
[null,null,null,null,null,null,null,null,null,null,null,null,null,null,null,null,"","","","","","","","","","","",""]
[null,null,null,null,null,null,null,null,null,null,null,null,null,null,null,null,"","","","","","","","","","","",""]
[null,null,null,null,null,null,null,null,null,null,null,null,null,null,null,null,"","","","","","","","","","","",""]
[null,null,null,null,null,null,null,null,null,null,null,null,null,null,null,null,"","","","","","","","","","","",""]
[null,null,null,null,null,null,null,null,null,null,null,null,null,null,null,null,"","","","","","","","","","","",""]
[null,null,null,null,null,null,null,null,null,null,null,null,null,null,null,null,"","","","","","","","","","","",""]
[null,null,null,null,null,null,null,null,null,null,null,null,null,null,null,null,"","","","","","","","","","","",""]
[null,null,null,null,null,null,null,null,null,null,null,null,null,null,null,null,"","","","","","","","","","","",""]
[null,null,null,null,null,null,null,null,null,null,null,null,null,null,null,null,"","","","","","","","","","","",""]
[null,null,null,null,null,null,null,null,null,null,null,null,null,null,null,null,"","","","","","","","","","","",""]
[null,null,null,null,null,null,null,null,null,null,null,null,null,null,null,null,"","","","","","","","","","","",""]
[null,null,null,null,null,null,null,null,null,null,null,null,null,null,null,null,"","","","","","","","","","","",""]
[null,null,null,null,null,null,null,null,null,null,null,null,null,null,null,null,"","","","","","","","","","","",""]
[null,null,null,null,null,null,null,null,null,null,null,null,null,null,null,null,"","","","","","","","","","","",""]
[null,null,null,null,null,null,null,null,null,null,null,null,null,null,null,null,"","","","","","","","","","","",""]
[null,null,null,null,null,null,null,null,null,null,null,null,null,null,null,null,"","","","","","","","","","","",""]
[null,null,null,null,null,null,null,null,null,null,null,null,null,null,null,null,"","","","","","","","","","","",""]
[null,null,null,null,null,null,null,null,null,null,null,null,null,null,null,null,"","","","","","","","","","","",""]
[null,null,null,null,null,null,null,null,null,null,null,null,null,null,null,null,"","","","","","","","","","","",""]
[null,null,null,null,null,null,null,null,null,null,null,null,null,null,null,null,"","","","","","","","","","","",""]
[null,null,null,null,null,null,null,null,null,null,null,null,null,null,null,null,{"$f":"IF(ISBLANK(D$4),\"\",IF(ISBLANK($B585),\"\",\"https://\"&$D$2&\"/search?q=\"&SUBSTITUTE(D$4&\" \"&$B585,\" \",\"+\")&\"&ion=0&num=10\"))","v":""},{"$f":"IF(ISBLANK(E$4),\"\",IF(ISBLANK($B585),\"\",\"https://\"&$D$2&\"/search?q=\"&SUBSTITUTE(E$4&\" \"&$B585,\" \",\"+\")&\"&ion=0&num=10\"))","v":""},{"$f":"IF(ISBLANK(F$4),\"\",IF(ISBLANK($B585),\"\",\"https://\"&$D$2&\"/search?q=\"&SUBSTITUTE(F$4&\" \"&$B585,\" \",\"+\")&\"&ion=0&num=10\"))","v":""},{"$f":"IF(ISBLANK(G$4),\"\",IF(ISBLANK($B585),\"\",\"https://\"&$D$2&\"/search?q=\"&SUBSTITUTE(G$4&\" \"&$B585,\" \",\"+\")&\"&ion=0&num=10\"))","v":""},{"$f":"IF(ISBLANK(H$4),\"\",IF(ISBLANK($B585),\"\",\"https://\"&$D$2&\"/search?q=\"&SUBSTITUTE(H$4&\" \"&$B585,\" \",\"+\")&\"&ion=0&num=10\"))","v":""},{"$f":"IF(ISBLANK(I$4),\"\",IF(ISBLANK($B585),\"\",\"https://\"&$D$2&\"/search?q=\"&SUBSTITUTE(I$4&\" \"&$B585,\" \",\"+\")&\"&ion=0&num=10\"))","v":""},{"$f":"IF(ISBLANK(J$4),\"\",IF(ISBLANK($B585),\"\",\"https://\"&$D$2&\"/search?q=\"&SUBSTITUTE(J$4&\" \"&$B585,\" \",\"+\")&\"&ion=0&num=10\"))","v":""},{"$f":"IF(ISBLANK(K$4),\"\",IF(ISBLANK($B585),\"\",\"https://\"&$D$2&\"/search?q=\"&SUBSTITUTE(K$4&\" \"&$B585,\" \",\"+\")&\"&ion=0&num=10\"))","v":""},{"$f":"IF(ISBLANK(L$4),\"\",IF(ISBLANK($B585),\"\",\"https://\"&$D$2&\"/search?q=\"&SUBSTITUTE(L$4&\" \"&$B585,\" \",\"+\")&\"&ion=0&num=10\"))","v":""},{"$f":"IF(ISBLANK(M$4),\"\",IF(ISBLANK($B585),\"\",\"https://\"&$D$2&\"/search?q=\"&SUBSTITUTE(M$4&\" \"&$B585,\" \",\"+\")&\"&ion=0&num=10\"))","v":""},{"$f":"IF(ISBLANK(N$4),\"\",IF(ISBLANK($B585),\"\",\"https://\"&$D$2&\"/search?q=\"&SUBSTITUTE(N$4&\" \"&$B585,\" \",\"+\")&\"&ion=0&num=10\"))","v":""},{"$f":"IF(ISBLANK(O$4),\"\",IF(ISBLANK($B585),\"\",\"https://\"&$D$2&\"/search?q=\"&SUBSTITUTE(O$4&\" \"&$B585,\" \",\"+\")&\"&ion=0&num=10\"))","v":""}]
[null,null,null,null,null,null,null,null,null,null,null,null,null,null,null,null,"","","","","","","","","","","",""]
[null,null,null,null,null,null,null,null,null,null,null,null,null,null,null,null,"","","","","","","","","","","",""]
[null,null,null,null,null,null,null,null,null,null,null,null,null,null,null,null,"","","","","","","","","","","",""]
[null,null,null,null,null,null,null,null,null,null,null,null,null,null,null,null,"","","","","","","","","","","",""]
[null,null,null,null,null,null,null,null,null,null,null,null,null,null,null,null,"","","","","","","","","","","",""]
[null,null,null,null,null,null,null,null,null,null,null,null,null,null,null,null,"","","","","","","","","","","",""]
[null,null,null,null,null,null,null,null,null,null,null,null,null,null,null,null,"","","","","","","","","","","",""]
[null,null,null,null,null,null,null,null,null,null,null,null,null,null,null,null,"","","","","","","","","","","",""]
[null,null,null,null,null,null,null,null,null,null,null,null,null,null,null,null,"","","","","","","","","","","",""]
[null,null,null,null,null,null,null,null,null,null,null,null,null,null,null,null,"","","","","","","","","","","",""]
[null,null,null,null,null,null,null,null,null,null,null,null,null,null,null,null,"","","","","","","","","","","",""]
[null,null,null,null,null,null,null,null,null,null,null,null,null,null,null,null,"","","","","","","","","","","",""]
[null,null,null,null,null,null,null,null,null,null,null,null,null,null,null,null,"","","","","","","","","","","",""]
[null,null,null,null,null,null,null,null,null,null,null,null,null,null,null,null,"","","","","","","","","","","",""]
[null,null,null,null,null,null,null,null,null,null,null,null,null,null,null,null,"","","","","","","","","","","",""]
[null,null,null,null,null,null,null,null,null,null,null,null,null,null,null,null,"","","","","","","","","","","",""]
[null,null,null,null,null,null,null,null,null,null,null,null,null,null,null,null,"","","","","","","","","","","",""]
[null,null,null,null,null,null,null,null,null,null,null,null,null,null,null,null,"","","","","","","","","","","",""]
[null,null,null,null,null,null,null,null,null,null,null,null,null,null,null,null,"","","","","","","","","","","",""]
[null,null,null,null,null,null,null,null,null,null,null,null,null,null,null,null,"","","","","","","","","","","",""]
[null,null,null,null,null,null,null,null,null,null,null,null,null,null,null,null,"","","","","","","","","","","",""]
[null,null,null,null,null,null,null,null,null,null,null,null,null,null,null,null,"","","","","","","","","","","",""]
[null,null,null,null,null,null,null,null,null,null,null,null,null,null,null,null,"","","","","","","","","","","",""]
[null,null,null,null,null,null,null,null,null,null,null,null,null,null,null,null,"","","","","","","","","","","",""]
[null,null,null,null,null,null,null,null,null,null,null,null,null,null,null,null,"","","","","","","","","","","",""]
[null,null,null,null,null,null,null,null,null,null,null,null,null,null,null,null,"","","","","","","","","","","",""]
[null,null,null,null,null,null,null,null,null,null,null,null,null,null,null,null,"","","","","","","","","","","",""]
[null,null,null,null,null,null,null,null,null,null,null,null,null,null,null,null,"","","","","","","","","","","",""]
[null,null,null,null,null,null,null,null,null,null,null,null,null,null,null,null,"","","","","","","","","","","",""]
[null,null,null,null,null,null,null,null,null,null,null,null,null,null,null,null,"","","","","","","","","","","",""]
[null,null,null,null,null,null,null,null,null,null,null,null,null,null,null,null,"","","","","","","","","","","",""]
[null,null,null,null,null,null,null,null,null,null,null,null,null,null,null,null,"","","","","","","","","","","",""]
[null,null,null,null,null,null,null,null,null,null,null,null,null,null,null,null,"","","","","","","","","","","",""]
[null,null,null,null,null,null,null,null,null,null,null,null,null,null,null,null,"","","","","","","","","","","",""]
[null,null,null,null,null,null,null,null,null,null,null,null,null,null,null,null,"","","","","","","","","","","",""]
[null,null,null,null,null,null,null,null,null,null,null,null,null,null,null,null,"","","","","","","","","","","",""]
[null,null,null,null,null,null,null,null,null,null,null,null,null,null,null,null,"","","","","","","","","","","",""]
[null,null,null,null,null,null,null,null,null,null,null,null,null,null,null,null,"","","","","","","","","","","",""]
[null,null,null,null,null,null,null,null,null,null,null,null,null,null,null,null,"","","","","","","","","","","",""]
[null,null,null,null,null,null,null,null,null,null,null,null,null,null,null,null,"","","","","","","","","","","",""]
[null,null,null,null,null,null,null,null,null,null,null,null,null,null,null,null,"","","","","","","","","","","",""]
[null,null,null,null,null,null,null,null,null,null,null,null,null,null,null,null,"","","","","","","","","","","",""]
[null,null,null,null,null,null,null,null,null,null,null,null,null,null,null,null,"","","","","","","","","","","",""]
[null,null,null,null,null,null,null,null,null,null,null,null,null,null,null,null,"","","","","","","","","","","",""]
[null,null,null,null,null,null,null,null,null,null,null,null,null,null,null,null,"","","","","","","","","","","",""]
[null,null,null,null,null,null,null,null,null,null,null,null,null,null,null,null,"","","","","","","","","","","",""]
[null,null,null,null,null,null,null,null,null,null,null,null,null,null,null,null,"","","","","","","","","","","",""]
[null,null,null,null,null,null,null,null,null,null,null,null,null,null,null,null,"","","","","","","","","","","",""]
[null,null,null,null,null,null,null,null,null,null,null,null,null,null,null,null,"","","","","","","","","","","",""]
[null,null,null,null,null,null,null,null,null,null,null,null,null,null,null,null,"","","","","","","","","","","",""]
[null,null,null,null,null,null,null,null,null,null,null,null,null,null,null,null,"","","","","","","","","","","",""]
[null,null,null,null,null,null,null,null,null,null,null,null,null,null,null,null,"","","","","","","","","","","",""]
[null,null,null,null,null,null,null,null,null,null,null,null,null,null,null,null,"","","","","","","","","","","",""]
[null,null,null,null,null,null,null,null,null,null,null,null,null,null,null,null,"","","","","","","","","","","",""]
[null,null,null,null,null,null,null,null,null,null,null,null,null,null,null,null,"","","","","","","","","","","",""]
[null,null,null,null,null,null,null,null,null,null,null,null,null,null,null,null,"","","","","","","","","","","",""]
[null,null,null,null,null,null,null,null,null,null,null,null,null,null,null,null,"","","","","","","","","","","",""]
[null,null,null,null,null,null,null,null,null,null,null,null,null,null,null,null,"","","","","","","","","","","",""]
[null,null,null,null,null,null,null,null,null,null,null,null,null,null,null,null,"","","","","","","","","","","",""]
[null,null,null,null,null,null,null,null,null,null,null,null,null,null,null,null,"","","","","","","","","","","",""]
[null,null,null,null,null,null,null,null,null,null,null,null,null,null,null,null,"","","","","","","","","","","",""]
[null,null,null,null,null,null,null,null,null,null,null,null,null,null,null,null,"","","","","","","","","","","",""]
[null,null,null,null,null,null,null,null,null,null,null,null,null,null,null,null,"","","","","","","","","","","",""]
[null,null,null,null,null,null,null,null,null,null,null,null,null,null,null,null,{"$f":"IF(ISBLANK(D$4),\"\",IF(ISBLANK($B649),\"\",\"https://\"&$D$2&\"/search?q=\"&SUBSTITUTE(D$4&\" \"&$B649,\" \",\"+\")&\"&ion=0&num=10\"))","v":""},{"$f":"IF(ISBLANK(E$4),\"\",IF(ISBLANK($B649),\"\",\"https://\"&$D$2&\"/search?q=\"&SUBSTITUTE(E$4&\" \"&$B649,\" \",\"+\")&\"&ion=0&num=10\"))","v":""},{"$f":"IF(ISBLANK(F$4),\"\",IF(ISBLANK($B649),\"\",\"https://\"&$D$2&\"/search?q=\"&SUBSTITUTE(F$4&\" \"&$B649,\" \",\"+\")&\"&ion=0&num=10\"))","v":""},{"$f":"IF(ISBLANK(G$4),\"\",IF(ISBLANK($B649),\"\",\"https://\"&$D$2&\"/search?q=\"&SUBSTITUTE(G$4&\" \"&$B649,\" \",\"+\")&\"&ion=0&num=10\"))","v":""},{"$f":"IF(ISBLANK(H$4),\"\",IF(ISBLANK($B649),\"\",\"https://\"&$D$2&\"/search?q=\"&SUBSTITUTE(H$4&\" \"&$B649,\" \",\"+\")&\"&ion=0&num=10\"))","v":""},{"$f":"IF(ISBLANK(I$4),\"\",IF(ISBLANK($B649),\"\",\"https://\"&$D$2&\"/search?q=\"&SUBSTITUTE(I$4&\" \"&$B649,\" \",\"+\")&\"&ion=0&num=10\"))","v":""},{"$f":"IF(ISBLANK(J$4),\"\",IF(ISBLANK($B649),\"\",\"https://\"&$D$2&\"/search?q=\"&SUBSTITUTE(J$4&\" \"&$B649,\" \",\"+\")&\"&ion=0&num=10\"))","v":""},{"$f":"IF(ISBLANK(K$4),\"\",IF(ISBLANK($B649),\"\",\"https://\"&$D$2&\"/search?q=\"&SUBSTITUTE(K$4&\" \"&$B649,\" \",\"+\")&\"&ion=0&num=10\"))","v":""},{"$f":"IF(ISBLANK(L$4),\"\",IF(ISBLANK($B649),\"\",\"https://\"&$D$2&\"/search?q=\"&SUBSTITUTE(L$4&\" \"&$B649,\" \",\"+\")&\"&ion=0&num=10\"))","v":""},{"$f":"IF(ISBLANK(M$4),\"\",IF(ISBLANK($B649),\"\",\"https://\"&$D$2&\"/search?q=\"&SUBSTITUTE(M$4&\" \"&$B649,\" \",\"+\")&\"&ion=0&num=10\"))","v":""},{"$f":"IF(ISBLANK(N$4),\"\",IF(ISBLANK($B649),\"\",\"https://\"&$D$2&\"/search?q=\"&SUBSTITUTE(N$4&\" \"&$B649,\" \",\"+\")&\"&ion=0&num=10\"))","v":""},{"$f":"IF(ISBLANK(O$4),\"\",IF(ISBLANK($B649),\"\",\"https://\"&$D$2&\"/search?q=\"&SUBSTITUTE(O$4&\" \"&$B649,\" \",\"+\")&\"&ion=0&num=10\"))","v":""}]
[null,null,null,null,null,null,null,null,null,null,null,null,null,null,null,null,"","","","","","","","","","","",""]
[null,null,null,null,null,null,null,null,null,null,null,null,null,null,null,null,"","","","","","","","","","","",""]
[null,null,null,null,null,null,null,null,null,null,null,null,null,null,null,null,"","","","","","","","","","","",""]
[null,null,null,null,null,null,null,null,null,null,null,null,null,null,null,null,"","","","","","","","","","","",""]
[null,null,null,null,null,null,null,null,null,null,null,null,null,null,null,null,"","","","","","","","","","","",""]
[null,null,null,null,null,null,null,null,null,null,null,null,null,null,null,null,"","","","","","","","","","","",""]
[null,null,null,null,null,null,null,null,null,null,null,null,null,null,null,null,"","","","","","","","","","","",""]
[null,null,null,null,null,null,null,null,null,null,null,null,null,null,null,null,"","","","","","","","","","","",""]
[null,null,null,null,null,null,null,null,null,null,null,null,null,null,null,null,"","","","","","","","","","","",""]
[null,null,null,null,null,null,null,null,null,null,null,null,null,null,null,null,"","","","","","","","","","","",""]
[null,null,null,null,null,null,null,null,null,null,null,null,null,null,null,null,"","","","","","","","","","","",""]
[null,null,null,null,null,null,null,null,null,null,null,null,null,null,null,null,"","","","","","","","","","","",""]
[null,null,null,null,null,null,null,null,null,null,null,null,null,null,null,null,"","","","","","","","","","","",""]
[null,null,null,null,null,null,null,null,null,null,null,null,null,null,null,null,"","","","","","","","","","","",""]
[null,null,null,null,null,null,null,null,null,null,null,null,null,null,null,null,"","","","","","","","","","","",""]
[null,null,null,null,null,null,null,null,null,null,null,null,null,null,null,null,"","","","","","","","","","","",""]
[null,null,null,null,null,null,null,null,null,null,null,null,null,null,null,null,"","","","","","","","","","","",""]
[null,null,null,null,null,null,null,null,null,null,null,null,null,null,null,null,"","","","","","","","","","","",""]
[null,null,null,null,null,null,null,null,null,null,null,null,null,null,null,null,"","","","","","","","","","","",""]
[null,null,null,null,null,null,null,null,null,null,null,null,null,null,null,null,"","","","","","","","","","","",""]
[null,null,null,null,null,null,null,null,null,null,null,null,null,null,null,null,"","","","","","","","","","","",""]
[null,null,null,null,null,null,null,null,null,null,null,null,null,null,null,null,"","","","","","","","","","","",""]
[null,null,null,null,null,null,null,null,null,null,null,null,null,null,null,null,"","","","","","","","","","","",""]
[null,null,null,null,null,null,null,null,null,null,null,null,null,null,null,null,"","","","","","","","","","","",""]
[null,null,null,null,null,null,null,null,null,null,null,null,null,null,null,null,"","","","","","","","","","","",""]
[null,null,null,null,null,null,null,null,null,null,null,null,null,null,null,null,"","","","","","","","","","","",""]
[null,null,null,null,null,null,null,null,null,null,null,null,null,null,null,null,"","","","","","","","","","","",""]
[null,null,null,null,null,null,null,null,null,null,null,null,null,null,null,null,"","","","","","","","","","","",""]
[null,null,null,null,null,null,null,null,null,null,null,null,null,null,null,null,"","","","","","","","","","","",""]
[null,null,null,null,null,null,null,null,null,null,null,null,null,null,null,null,"","","","","","","","","","","",""]
[null,null,null,null,null,null,null,null,null,null,null,null,null,null,null,null,"","","","","","","","","","","",""]
[null,null,null,null,null,null,null,null,null,null,null,null,null,null,null,null,"","","","","","","","","","","",""]
[null,null,null,null,null,null,null,null,null,null,null,null,null,null,null,null,"","","","","","","","","","","",""]
[null,null,null,null,null,null,null,null,null,null,null,null,null,null,null,null,"","","","","","","","","","","",""]
[null,null,null,null,null,null,null,null,null,null,null,null,null,null,null,null,"","","","","","","","","","","",""]
[null,null,null,null,null,null,null,null,null,null,null,null,null,null,null,null,"","","","","","","","","","","",""]
[null,null,null,null,null,null,null,null,null,null,null,null,null,null,null,null,"","","","","","","","","","","",""]
[null,null,null,null,null,null,null,null,null,null,null,null,null,null,null,null,"","","","","","","","","","","",""]
[null,null,null,null,null,null,null,null,null,null,null,null,null,null,null,null,"","","","","","","","","","","",""]
[null,null,null,null,null,null,null,null,null,null,null,null,null,null,null,null,"","","","","","","","","","","",""]
[null,null,null,null,null,null,null,null,null,null,null,null,null,null,null,null,"","","","","","","","","","","",""]
[null,null,null,null,null,null,null,null,null,null,null,null,null,null,null,null,"","","","","","","","","","","",""]
[null,null,null,null,null,null,null,null,null,null,null,null,null,null,null,null,"","","","","","","","","","","",""]
[null,null,null,null,null,null,null,null,null,null,null,null,null,null,null,null,"","","","","","","","","","","",""]
[null,null,null,null,null,null,null,null,null,null,null,null,null,null,null,null,"","","","","","","","","","","",""]
[null,null,null,null,null,null,null,null,null,null,null,null,null,null,null,null,"","","","","","","","","","","",""]
[null,null,null,null,null,null,null,null,null,null,null,null,null,null,null,null,"","","","","","","","","","","",""]
[null,null,null,null,null,null,null,null,null,null,null,null,null,null,null,null,"","","","","","","","","","","",""]
[null,null,null,null,null,null,null,null,null,null,null,null,null,null,null,null,"","","","","","","","","","","",""]
[null,null,null,null,null,null,null,null,null,null,null,null,null,null,null,null,"","","","","","","","","","","",""]
[null,null,null,null,null,null,null,null,null,null,null,null,null,null,null,null,"","","","","","","","","","","",""]
[null,null,null,null,null,null,null,null,null,null,null,null,null,null,null,null,"","","","","","","","","","","",""]
[null,null,null,null,null,null,null,null,null,null,null,null,null,null,null,null,"","","","","","","","","","","",""]
[null,null,null,null,null,null,null,null,null,null,null,null,null,null,null,null,"","","","","","","","","","","",""]
[null,null,null,null,null,null,null,null,null,null,null,null,null,null,null,null,"","","","","","","","","","","",""]
[null,null,null,null,null,null,null,null,null,null,null,null,null,null,null,null,"","","","","","","","","","","",""]
[null,null,null,null,null,null,null,null,null,null,null,null,null,null,null,null,"","","","","","","","","","","",""]
[null,null,null,null,null,null,null,null,null,null,null,null,null,null,null,null,"","","","","","","","","","","",""]
[null,null,null,null,null,null,null,null,null,null,null,null,null,null,null,null,"","","","","","","","","","","",""]
[null,null,null,null,null,null,null,null,null,null,null,null,null,null,null,null,"","","","","","","","","","","",""]
[null,null,null,null,null,null,null,null,null,null,null,null,null,null,null,null,"","","","","","","","","","","",""]
[null,null,null,null,null,null,null,null,null,null,null,null,null,null,null,null,"","","","","","","","","","","",""]
[null,null,null,null,null,null,null,null,null,null,null,null,null,null,null,null,"","","","","","","","","","","",""]
[null,null,null,null,null,null,null,null,null,null,null,null,null,null,null,null,{"$f":"IF(ISBLANK(D$4),\"\",IF(ISBLANK($B713),\"\",\"https://\"&$D$2&\"/search?q=\"&SUBSTITUTE(D$4&\" \"&$B713,\" \",\"+\")&\"&ion=0&num=10\"))","v":""},{"$f":"IF(ISBLANK(E$4),\"\",IF(ISBLANK($B713),\"\",\"https://\"&$D$2&\"/search?q=\"&SUBSTITUTE(E$4&\" \"&$B713,\" \",\"+\")&\"&ion=0&num=10\"))","v":""},{"$f":"IF(ISBLANK(F$4),\"\",IF(ISBLANK($B713),\"\",\"https://\"&$D$2&\"/search?q=\"&SUBSTITUTE(F$4&\" \"&$B713,\" \",\"+\")&\"&ion=0&num=10\"))","v":""},{"$f":"IF(ISBLANK(G$4),\"\",IF(ISBLANK($B713),\"\",\"https://\"&$D$2&\"/search?q=\"&SUBSTITUTE(G$4&\" \"&$B713,\" \",\"+\")&\"&ion=0&num=10\"))","v":""},{"$f":"IF(ISBLANK(H$4),\"\",IF(ISBLANK($B713),\"\",\"https://\"&$D$2&\"/search?q=\"&SUBSTITUTE(H$4&\" \"&$B713,\" \",\"+\")&\"&ion=0&num=10\"))","v":""},{"$f":"IF(ISBLANK(I$4),\"\",IF(ISBLANK($B713),\"\",\"https://\"&$D$2&\"/search?q=\"&SUBSTITUTE(I$4&\" \"&$B713,\" \",\"+\")&\"&ion=0&num=10\"))","v":""},{"$f":"IF(ISBLANK(J$4),\"\",IF(ISBLANK($B713),\"\",\"https://\"&$D$2&\"/search?q=\"&SUBSTITUTE(J$4&\" \"&$B713,\" \",\"+\")&\"&ion=0&num=10\"))","v":""},{"$f":"IF(ISBLANK(K$4),\"\",IF(ISBLANK($B713),\"\",\"https://\"&$D$2&\"/search?q=\"&SUBSTITUTE(K$4&\" \"&$B713,\" \",\"+\")&\"&ion=0&num=10\"))","v":""},{"$f":"IF(ISBLANK(L$4),\"\",IF(ISBLANK($B713),\"\",\"https://\"&$D$2&\"/search?q=\"&SUBSTITUTE(L$4&\" \"&$B713,\" \",\"+\")&\"&ion=0&num=10\"))","v":""},{"$f":"IF(ISBLANK(M$4),\"\",IF(ISBLANK($B713),\"\",\"https://\"&$D$2&\"/search?q=\"&SUBSTITUTE(M$4&\" \"&$B713,\" \",\"+\")&\"&ion=0&num=10\"))","v":""},{"$f":"IF(ISBLANK(N$4),\"\",IF(ISBLANK($B713),\"\",\"https://\"&$D$2&\"/search?q=\"&SUBSTITUTE(N$4&\" \"&$B713,\" \",\"+\")&\"&ion=0&num=10\"))","v":""},{"$f":"IF(ISBLANK(O$4),\"\",IF(ISBLANK($B713),\"\",\"https://\"&$D$2&\"/search?q=\"&SUBSTITUTE(O$4&\" \"&$B713,\" \",\"+\")&\"&ion=0&num=10\"))","v":""}]
[null,null,null,null,null,null,null,null,null,null,null,null,null,null,null,null,"","","","","","","","","","","",""]
[null,null,null,null,null,null,null,null,null,null,null,null,null,null,null,null,"","","","","","","","","","","",""]
[null,null,null,null,null,null,null,null,null,null,null,null,null,null,null,null,"","","","","","","","","","","",""]
[null,null,null,null,null,null,null,null,null,null,null,null,null,null,null,null,"","","","","","","","","","","",""]
[null,null,null,null,null,null,null,null,null,null,null,null,null,null,null,null,"","","","","","","","","","","",""]
[null,null,null,null,null,null,null,null,null,null,null,null,null,null,null,null,"","","","","","","","","","","",""]
[null,null,null,null,null,null,null,null,null,null,null,null,null,null,null,null,"","","","","","","","","","","",""]
[null,null,null,null,null,null,null,null,null,null,null,null,null,null,null,null,"","","","","","","","","","","",""]
[null,null,null,null,null,null,null,null,null,null,null,null,null,null,null,null,"","","","","","","","","","","",""]
[null,null,null,null,null,null,null,null,null,null,null,null,null,null,null,null,"","","","","","","","","","","",""]
[null,null,null,null,null,null,null,null,null,null,null,null,null,null,null,null,"","","","","","","","","","","",""]
[null,null,null,null,null,null,null,null,null,null,null,null,null,null,null,null,"","","","","","","","","","","",""]
[null,null,null,null,null,null,null,null,null,null,null,null,null,null,null,null,"","","","","","","","","","","",""]
[null,null,null,null,null,null,null,null,null,null,null,null,null,null,null,null,"","","","","","","","","","","",""]
[null,null,null,null,null,null,null,null,null,null,null,null,null,null,null,null,"","","","","","","","","","","",""]
[null,null,null,null,null,null,null,null,null,null,null,null,null,null,null,null,"","","","","","","","","","","",""]
[null,null,null,null,null,null,null,null,null,null,null,null,null,null,null,null,"","","","","","","","","","","",""]
[null,null,null,null,null,null,null,null,null,null,null,null,null,null,null,null,"","","","","","","","","","","",""]
[null,null,null,null,null,null,null,null,null,null,null,null,null,null,null,null,"","","","","","","","","","","",""]
[null,null,null,null,null,null,null,null,null,null,null,null,null,null,null,null,"","","","","","","","","","","",""]
[null,null,null,null,null,null,null,null,null,null,null,null,null,null,null,null,"","","","","","","","","","","",""]
[null,null,null,null,null,null,null,null,null,null,null,null,null,null,null,null,"","","","","","","","","","","",""]
[null,null,null,null,null,null,null,null,null,null,null,null,null,null,null,null,"","","","","","","","","","","",""]
[null,null,null,null,null,null,null,null,null,null,null,null,null,null,null,null,"","","","","","","","","","","",""]
[null,null,null,null,null,null,null,null,null,null,null,null,null,null,null,null,"","","","","","","","","","","",""]
[null,null,null,null,null,null,null,null,null,null,null,null,null,null,null,null,"","","","","","","","","","","",""]
[null,null,null,null,null,null,null,null,null,null,null,null,null,null,null,null,"","","","","","","","","","","",""]
[null,null,null,null,null,null,null,null,null,null,null,null,null,null,null,null,"","","","","","","","","","","",""]
[null,null,null,null,null,null,null,null,null,null,null,null,null,null,null,null,"","","","","","","","","","","",""]
[null,null,null,null,null,null,null,null,null,null,null,null,null,null,null,null,"","","","","","","","","","","",""]
[null,null,null,null,null,null,null,null,null,null,null,null,null,null,null,null,"","","","","","","","","","","",""]
[null,null,null,null,null,null,null,null,null,null,null,null,null,null,null,null,"","","","","","","","","","","",""]
[null,null,null,null,null,null,null,null,null,null,null,null,null,null,null,null,"","","","","","","","","","","",""]
[null,null,null,null,null,null,null,null,null,null,null,null,null,null,null,null,"","","","","","","","","","","",""]
[null,null,null,null,null,null,null,null,null,null,null,null,null,null,null,null,"","","","","","","","","","","",""]
[null,null,null,null,null,null,null,null,null,null,null,null,null,null,null,null,"","","","","","","","","","","",""]
[null,null,null,null,null,null,null,null,null,null,null,null,null,null,null,null,"","","","","","","","","","","",""]
[null,null,null,null,null,null,null,null,null,null,null,null,null,null,null,null,"","","","","","","","","","","",""]
[null,null,null,null,null,null,null,null,null,null,null,null,null,null,null,null,"","","","","","","","","","","",""]
[null,null,null,null,null,null,null,null,null,null,null,null,null,null,null,null,"","","","","","","","","","","",""]
[null,null,null,null,null,null,null,null,null,null,null,null,null,null,null,null,"","","","","","","","","","","",""]
[null,null,null,null,null,null,null,null,null,null,null,null,null,null,null,null,"","","","","","","","","","","",""]
[null,null,null,null,null,null,null,null,null,null,null,null,null,null,null,null,"","","","","","","","","","","",""]
[null,null,null,null,null,null,null,null,null,null,null,null,null,null,null,null,"","","","","","","","","","","",""]
[null,null,null,null,null,null,null,null,null,null,null,null,null,null,null,null,"","","","","","","","","","","",""]
[null,null,null,null,null,null,null,null,null,null,null,null,null,null,null,null,"","","","","","","","","","","",""]
[null,null,null,null,null,null,null,null,null,null,null,null,null,null,null,null,"","","","","","","","","","","",""]
[null,null,null,null,null,null,null,null,null,null,null,null,null,null,null,null,"","","","","","","","","","","",""]
[null,null,null,null,null,null,null,null,null,null,null,null,null,null,null,null,"","","","","","","","","","","",""]
[null,null,null,null,null,null,null,null,null,null,null,null,null,null,null,null,"","","","","","","","","","","",""]
[null,null,null,null,null,null,null,null,null,null,null,null,null,null,null,null,"","","","","","","","","","","",""]
[null,null,null,null,null,null,null,null,null,null,null,null,null,null,null,null,"","","","","","","","","","","",""]
[null,null,null,null,null,null,null,null,null,null,null,null,null,null,null,null,"","","","","","","","","","","",""]
[null,null,null,null,null,null,null,null,null,null,null,null,null,null,null,null,"","","","","","","","","","","",""]
[null,null,null,null,null,null,null,null,null,null,null,null,null,null,null,null,"","","","","","","","","","","",""]
[null,null,null,null,null,null,null,null,null,null,null,null,null,null,null,null,"","","","","","","","","","","",""]
[null,null,null,null,null,null,null,null,null,null,null,null,null,null,null,null,"","","","","","","","","","","",""]
[null,null,null,null,null,null,null,null,null,null,null,null,null,null,null,null,"","","","","","","","","","","",""]
[null,null,null,null,null,null,null,null,null,null,null,null,null,null,null,null,"","","","","","","","","","","",""]
[null,null,null,null,null,null,null,null,null,null,null,null,null,null,null,null,"","","","","","","","","","","",""]
[null,null,null,null,null,null,null,null,null,null,null,null,null,null,null,null,"","","","","","","","","","","",""]
[null,null,null,null,null,null,null,null,null,null,null,null,null,null,null,null,"","","","","","","","","","","",""]
[null,null,null,null,null,null,null,null,null,null,null,null,null,null,null,null,"","","","","","","","","","","",""]
[null,null,null,null,null,null,null,null,null,null,null,null,null,null,null,null,{"$f":"IF(ISBLANK(D$4),\"\",IF(ISBLANK($B777),\"\",\"https://\"&$D$2&\"/search?q=\"&SUBSTITUTE(D$4&\" \"&$B777,\" \",\"+\")&\"&ion=0&num=10\"))","v":""},{"$f":"IF(ISBLANK(E$4),\"\",IF(ISBLANK($B777),\"\",\"https://\"&$D$2&\"/search?q=\"&SUBSTITUTE(E$4&\" \"&$B777,\" \",\"+\")&\"&ion=0&num=10\"))","v":""},{"$f":"IF(ISBLANK(F$4),\"\",IF(ISBLANK($B777),\"\",\"https://\"&$D$2&\"/search?q=\"&SUBSTITUTE(F$4&\" \"&$B777,\" \",\"+\")&\"&ion=0&num=10\"))","v":""},{"$f":"IF(ISBLANK(G$4),\"\",IF(ISBLANK($B777),\"\",\"https://\"&$D$2&\"/search?q=\"&SUBSTITUTE(G$4&\" \"&$B777,\" \",\"+\")&\"&ion=0&num=10\"))","v":""},{"$f":"IF(ISBLANK(H$4),\"\",IF(ISBLANK($B777),\"\",\"https://\"&$D$2&\"/search?q=\"&SUBSTITUTE(H$4&\" \"&$B777,\" \",\"+\")&\"&ion=0&num=10\"))","v":""},{"$f":"IF(ISBLANK(I$4),\"\",IF(ISBLANK($B777),\"\",\"https://\"&$D$2&\"/search?q=\"&SUBSTITUTE(I$4&\" \"&$B777,\" \",\"+\")&\"&ion=0&num=10\"))","v":""},{"$f":"IF(ISBLANK(J$4),\"\",IF(ISBLANK($B777),\"\",\"https://\"&$D$2&\"/search?q=\"&SUBSTITUTE(J$4&\" \"&$B777,\" \",\"+\")&\"&ion=0&num=10\"))","v":""},{"$f":"IF(ISBLANK(K$4),\"\",IF(ISBLANK($B777),\"\",\"https://\"&$D$2&\"/search?q=\"&SUBSTITUTE(K$4&\" \"&$B777,\" \",\"+\")&\"&ion=0&num=10\"))","v":""},{"$f":"IF(ISBLANK(L$4),\"\",IF(ISBLANK($B777),\"\",\"https://\"&$D$2&\"/search?q=\"&SUBSTITUTE(L$4&\" \"&$B777,\" \",\"+\")&\"&ion=0&num=10\"))","v":""},{"$f":"IF(ISBLANK(M$4),\"\",IF(ISBLANK($B777),\"\",\"https://\"&$D$2&\"/search?q=\"&SUBSTITUTE(M$4&\" \"&$B777,\" \",\"+\")&\"&ion=0&num=10\"))","v":""},{"$f":"IF(ISBLANK(N$4),\"\",IF(ISBLANK($B777),\"\",\"https://\"&$D$2&\"/search?q=\"&SUBSTITUTE(N$4&\" \"&$B777,\" \",\"+\")&\"&ion=0&num=10\"))","v":""},{"$f":"IF(ISBLANK(O$4),\"\",IF(ISBLANK($B777),\"\",\"https://\"&$D$2&\"/search?q=\"&SUBSTITUTE(O$4&\" \"&$B777,\" \",\"+\")&\"&ion=0&num=10\"))","v":""}]
[null,null,null,null,null,null,null,null,null,null,null,null,null,null,null,null,"","","","","","","","","","","",""]
[null,null,null,null,null,null,null,null,null,null,null,null,null,null,null,null,"","","","","","","","","","","",""]
[null,null,null,null,null,null,null,null,null,null,null,null,null,null,null,null,"","","","","","","","","","","",""]
[null,null,null,null,null,null,null,null,null,null,null,null,null,null,null,null,"","","","","","","","","","","",""]
[null,null,null,null,null,null,null,null,null,null,null,null,null,null,null,null,"","","","","","","","","","","",""]
[null,null,null,null,null,null,null,null,null,null,null,null,null,null,null,null,"","","","","","","","","","","",""]
[null,null,null,null,null,null,null,null,null,null,null,null,null,null,null,null,"","","","","","","","","","","",""]
[null,null,null,null,null,null,null,null,null,null,null,null,null,null,null,null,"","","","","","","","","","","",""]
[null,null,null,null,null,null,null,null,null,null,null,null,null,null,null,null,"","","","","","","","","","","",""]
[null,null,null,null,null,null,null,null,null,null,null,null,null,null,null,null,"","","","","","","","","","","",""]
[null,null,null,null,null,null,null,null,null,null,null,null,null,null,null,null,"","","","","","","","","","","",""]
[null,null,null,null,null,null,null,null,null,null,null,null,null,null,null,null,"","","","","","","","","","","",""]
[null,null,null,null,null,null,null,null,null,null,null,null,null,null,null,null,"","","","","","","","","","","",""]
[null,null,null,null,null,null,null,null,null,null,null,null,null,null,null,null,"","","","","","","","","","","",""]
[null,null,null,null,null,null,null,null,null,null,null,null,null,null,null,null,"","","","","","","","","","","",""]
[null,null,null,null,null,null,null,null,null,null,null,null,null,null,null,null,"","","","","","","","","","","",""]
[null,null,null,null,null,null,null,null,null,null,null,null,null,null,null,null,"","","","","","","","","","","",""]
[null,null,null,null,null,null,null,null,null,null,null,null,null,null,null,null,"","","","","","","","","","","",""]
[null,null,null,null,null,null,null,null,null,null,null,null,null,null,null,null,"","","","","","","","","","","",""]
[null,null,null,null,null,null,null,null,null,null,null,null,null,null,null,null,"","","","","","","","","","","",""]
[null,null,null,null,null,null,null,null,null,null,null,null,null,null,null,null,"","","","","","","","","","","",""]
[null,null,null,null,null,null,null,null,null,null,null,null,null,null,null,null,"","","","","","","","","","","",""]
[null,null,null,null,null,null,null,null,null,null,null,null,null,null,null,null,"","","","","","","","","","","",""]
[null,null,null,null,null,null,null,null,null,null,null,null,null,null,null,null,"","","","","","","","","","","",""]
[null,null,null,null,null,null,null,null,null,null,null,null,null,null,null,null,"","","","","","","","","","","",""]
[null,null,null,null,null,null,null,null,null,null,null,null,null,null,null,null,"","","","","","","","","","","",""]
[null,null,null,null,null,null,null,null,null,null,null,null,null,null,null,null,"","","","","","","","","","","",""]
[null,null,null,null,null,null,null,null,null,null,null,null,null,null,null,null,"","","","","","","","","","","",""]
[null,null,null,null,null,null,null,null,null,null,null,null,null,null,null,null,"","","","","","","","","","","",""]
[null,null,null,null,null,null,null,null,null,null,null,null,null,null,null,null,"","","","","","","","","","","",""]
[null,null,null,null,null,null,null,null,null,null,null,null,null,null,null,null,"","","","","","","","","","","",""]
[null,null,null,null,null,null,null,null,null,null,null,null,null,null,null,null,"","","","","","","","","","","",""]
[null,null,null,null,null,null,null,null,null,null,null,null,null,null,null,null,"","","","","","","","","","","",""]
[null,null,null,null,null,null,null,null,null,null,null,null,null,null,null,null,"","","","","","","","","","","",""]
[null,null,null,null,null,null,null,null,null,null,null,null,null,null,null,null,"","","","","","","","","","","",""]
[null,null,null,null,null,null,null,null,null,null,null,null,null,null,null,null,"","","","","","","","","","","",""]
[null,null,null,null,null,null,null,null,null,null,null,null,null,null,null,null,"","","","","","","","","","","",""]
[null,null,null,null,null,null,null,null,null,null,null,null,null,null,null,null,"","","","","","","","","","","",""]
[null,null,null,null,null,null,null,null,null,null,null,null,null,null,null,null,"","","","","","","","","","","",""]
[null,null,null,null,null,null,null,null,null,null,null,null,null,null,null,null,"","","","","","","","","","","",""]
[null,null,null,null,null,null,null,null,null,null,null,null,null,null,null,null,"","","","","","","","","","","",""]
[null,null,null,null,null,null,null,null,null,null,null,null,null,null,null,null,"","","","","","","","","","","",""]
[null,null,null,null,null,null,null,null,null,null,null,null,null,null,null,null,"","","","","","","","","","","",""]
[null,null,null,null,null,null,null,null,null,null,null,null,null,null,null,null,"","","","","","","","","","","",""]
[null,null,null,null,null,null,null,null,null,null,null,null,null,null,null,null,"","","","","","","","","","","",""]
[null,null,null,null,null,null,null,null,null,null,null,null,null,null,null,null,"","","","","","","","","","","",""]
[null,null,null,null,null,null,null,null,null,null,null,null,null,null,null,null,"","","","","","","","","","","",""]
[null,null,null,null,null,null,null,null,null,null,null,null,null,null,null,null,"","","","","","","","","","","",""]
[null,null,null,null,null,null,null,null,null,null,null,null,null,null,null,null,"","","","","","","","","","","",""]
[null,null,null,null,null,null,null,null,null,null,null,null,null,null,null,null,"","","","","","","","","","","",""]
[null,null,null,null,null,null,null,null,null,null,null,null,null,null,null,null,"","","","","","","","","","","",""]
[null,null,null,null,null,null,null,null,null,null,null,null,null,null,null,null,"","","","","","","","","","","",""]
[null,null,null,null,null,null,null,null,null,null,null,null,null,null,null,null,"","","","","","","","","","","",""]
[null,null,null,null,null,null,null,null,null,null,null,null,null,null,null,null,"","","","","","","","","","","",""]
[null,null,null,null,null,null,null,null,null,null,null,null,null,null,null,null,"","","","","","","","","","","",""]
[null,null,null,null,null,null,null,null,null,null,null,null,null,null,null,null,"","","","","","","","","","","",""]
[null,null,null,null,null,null,null,null,null,null,null,null,null,null,null,null,"","","","","","","","","","","",""]
[null,null,null,null,null,null,null,null,null,null,null,null,null,null,null,null,"","","","","","","","","","","",""]
[null,null,null,null,null,null,null,null,null,null,null,null,null,null,null,null,"","","","","","","","","","","",""]
[null,null,null,null,null,null,null,null,null,null,null,null,null,null,null,null,"","","","","","","","","","","",""]
[null,null,null,null,null,null,null,null,null,null,null,null,null,null,null,null,"","","","","","","","","","","",""]
[null,null,null,null,null,null,null,null,null,null,null,null,null,null,null,null,"","","","","","","","","","","",""]
[null,null,null,null,null,null,null,null,null,null,null,null,null,null,null,null,"","","","","","","","","","","",""]
[null,null,null,null,null,null,null,null,null,null,null,null,null,null,null,null,{"$f":"IF(ISBLANK(D$4),\"\",IF(ISBLANK($B841),\"\",\"https://\"&$D$2&\"/search?q=\"&SUBSTITUTE(D$4&\" \"&$B841,\" \",\"+\")&\"&ion=0&num=10\"))","v":""},{"$f":"IF(ISBLANK(E$4),\"\",IF(ISBLANK($B841),\"\",\"https://\"&$D$2&\"/search?q=\"&SUBSTITUTE(E$4&\" \"&$B841,\" \",\"+\")&\"&ion=0&num=10\"))","v":""},{"$f":"IF(ISBLANK(F$4),\"\",IF(ISBLANK($B841),\"\",\"https://\"&$D$2&\"/search?q=\"&SUBSTITUTE(F$4&\" \"&$B841,\" \",\"+\")&\"&ion=0&num=10\"))","v":""},{"$f":"IF(ISBLANK(G$4),\"\",IF(ISBLANK($B841),\"\",\"https://\"&$D$2&\"/search?q=\"&SUBSTITUTE(G$4&\" \"&$B841,\" \",\"+\")&\"&ion=0&num=10\"))","v":""},{"$f":"IF(ISBLANK(H$4),\"\",IF(ISBLANK($B841),\"\",\"https://\"&$D$2&\"/search?q=\"&SUBSTITUTE(H$4&\" \"&$B841,\" \",\"+\")&\"&ion=0&num=10\"))","v":""},{"$f":"IF(ISBLANK(I$4),\"\",IF(ISBLANK($B841),\"\",\"https://\"&$D$2&\"/search?q=\"&SUBSTITUTE(I$4&\" \"&$B841,\" \",\"+\")&\"&ion=0&num=10\"))","v":""},{"$f":"IF(ISBLANK(J$4),\"\",IF(ISBLANK($B841),\"\",\"https://\"&$D$2&\"/search?q=\"&SUBSTITUTE(J$4&\" \"&$B841,\" \",\"+\")&\"&ion=0&num=10\"))","v":""},{"$f":"IF(ISBLANK(K$4),\"\",IF(ISBLANK($B841),\"\",\"https://\"&$D$2&\"/search?q=\"&SUBSTITUTE(K$4&\" \"&$B841,\" \",\"+\")&\"&ion=0&num=10\"))","v":""},{"$f":"IF(ISBLANK(L$4),\"\",IF(ISBLANK($B841),\"\",\"https://\"&$D$2&\"/search?q=\"&SUBSTITUTE(L$4&\" \"&$B841,\" \",\"+\")&\"&ion=0&num=10\"))","v":""},{"$f":"IF(ISBLANK(M$4),\"\",IF(ISBLANK($B841),\"\",\"https://\"&$D$2&\"/search?q=\"&SUBSTITUTE(M$4&\" \"&$B841,\" \",\"+\")&\"&ion=0&num=10\"))","v":""},{"$f":"IF(ISBLANK(N$4),\"\",IF(ISBLANK($B841),\"\",\"https://\"&$D$2&\"/search?q=\"&SUBSTITUTE(N$4&\" \"&$B841,\" \",\"+\")&\"&ion=0&num=10\"))","v":""},{"$f":"IF(ISBLANK(O$4),\"\",IF(ISBLANK($B841),\"\",\"https://\"&$D$2&\"/search?q=\"&SUBSTITUTE(O$4&\" \"&$B841,\" \",\"+\")&\"&ion=0&num=10\"))","v":""}]
[null,null,null,null,null,null,null,null,null,null,null,null,null,null,null,null,"","","","","","","","","","","",""]
[null,null,null,null,null,null,null,null,null,null,null,null,null,null,null,null,"","","","","","","","","","","",""]
[null,null,null,null,null,null,null,null,null,null,null,null,null,null,null,null,"","","","","","","","","","","",""]
[null,null,null,null,null,null,null,null,null,null,null,null,null,null,null,null,"","","","","","","","","","","",""]
[null,null,null,null,null,null,null,null,null,null,null,null,null,null,null,null,"","","","","","","","","","","",""]
[null,null,null,null,null,null,null,null,null,null,null,null,null,null,null,null,"","","","","","","","","","","",""]
[null,null,null,null,null,null,null,null,null,null,null,null,null,null,null,null,"","","","","","","","","","","",""]
[null,null,null,null,null,null,null,null,null,null,null,null,null,null,null,null,"","","","","","","","","","","",""]
[null,null,null,null,null,null,null,null,null,null,null,null,null,null,null,null,"","","","","","","","","","","",""]
[null,null,null,null,null,null,null,null,null,null,null,null,null,null,null,null,"","","","","","","","","","","",""]
[null,null,null,null,null,null,null,null,null,null,null,null,null,null,null,null,"","","","","","","","","","","",""]
[null,null,null,null,null,null,null,null,null,null,null,null,null,null,null,null,"","","","","","","","","","","",""]
[null,null,null,null,null,null,null,null,null,null,null,null,null,null,null,null,"","","","","","","","","","","",""]
[null,null,null,null,null,null,null,null,null,null,null,null,null,null,null,null,"","","","","","","","","","","",""]
[null,null,null,null,null,null,null,null,null,null,null,null,null,null,null,null,"","","","","","","","","","","",""]
[null,null,null,null,null,null,null,null,null,null,null,null,null,null,null,null,"","","","","","","","","","","",""]
[null,null,null,null,null,null,null,null,null,null,null,null,null,null,null,null,"","","","","","","","","","","",""]
[null,null,null,null,null,null,null,null,null,null,null,null,null,null,null,null,"","","","","","","","","","","",""]
[null,null,null,null,null,null,null,null,null,null,null,null,null,null,null,null,"","","","","","","","","","","",""]
[null,null,null,null,null,null,null,null,null,null,null,null,null,null,null,null,"","","","","","","","","","","",""]
[null,null,null,null,null,null,null,null,null,null,null,null,null,null,null,null,"","","","","","","","","","","",""]
[null,null,null,null,null,null,null,null,null,null,null,null,null,null,null,null,"","","","","","","","","","","",""]
[null,null,null,null,null,null,null,null,null,null,null,null,null,null,null,null,"","","","","","","","","","","",""]
[null,null,null,null,null,null,null,null,null,null,null,null,null,null,null,null,"","","","","","","","","","","",""]
[null,null,null,null,null,null,null,null,null,null,null,null,null,null,null,null,"","","","","","","","","","","",""]
[null,null,null,null,null,null,null,null,null,null,null,null,null,null,null,null,"","","","","","","","","","","",""]
[null,null,null,null,null,null,null,null,null,null,null,null,null,null,null,null,"","","","","","","","","","","",""]
[null,null,null,null,null,null,null,null,null,null,null,null,null,null,null,null,"","","","","","","","","","","",""]
[null,null,null,null,null,null,null,null,null,null,null,null,null,null,null,null,"","","","","","","","","","","",""]
[null,null,null,null,null,null,null,null,null,null,null,null,null,null,null,null,"","","","","","","","","","","",""]
[null,null,null,null,null,null,null,null,null,null,null,null,null,null,null,null,"","","","","","","","","","","",""]
[null,null,null,null,null,null,null,null,null,null,null,null,null,null,null,null,"","","","","","","","","","","",""]
[null,null,null,null,null,null,null,null,null,null,null,null,null,null,null,null,"","","","","","","","","","","",""]
[null,null,null,null,null,null,null,null,null,null,null,null,null,null,null,null,"","","","","","","","","","","",""]
[null,null,null,null,null,null,null,null,null,null,null,null,null,null,null,null,"","","","","","","","","","","",""]
[null,null,null,null,null,null,null,null,null,null,null,null,null,null,null,null,"","","","","","","","","","","",""]
[null,null,null,null,null,null,null,null,null,null,null,null,null,null,null,null,"","","","","","","","","","","",""]
[null,null,null,null,null,null,null,null,null,null,null,null,null,null,null,null,"","","","","","","","","","","",""]
[null,null,null,null,null,null,null,null,null,null,null,null,null,null,null,null,"","","","","","","","","","","",""]
[null,null,null,null,null,null,null,null,null,null,null,null,null,null,null,null,"","","","","","","","","","","",""]
[null,null,null,null,null,null,null,null,null,null,null,null,null,null,null,null,"","","","","","","","","","","",""]
[null,null,null,null,null,null,null,null,null,null,null,null,null,null,null,null,"","","","","","","","","","","",""]
[null,null,null,null,null,null,null,null,null,null,null,null,null,null,null,null,"","","","","","","","","","","",""]
[null,null,null,null,null,null,null,null,null,null,null,null,null,null,null,null,"","","","","","","","","","","",""]
[null,null,null,null,null,null,null,null,null,null,null,null,null,null,null,null,"","","","","","","","","","","",""]
[null,null,null,null,null,null,null,null,null,null,null,null,null,null,null,null,"","","","","","","","","","","",""]
[null,null,null,null,null,null,null,null,null,null,null,null,null,null,null,null,"","","","","","","","","","","",""]
[null,null,null,null,null,null,null,null,null,null,null,null,null,null,null,null,"","","","","","","","","","","",""]
[null,null,null,null,null,null,null,null,null,null,null,null,null,null,null,null,"","","","","","","","","","","",""]
[null,null,null,null,null,null,null,null,null,null,null,null,null,null,null,null,"","","","","","","","","","","",""]
[null,null,null,null,null,null,null,null,null,null,null,null,null,null,null,null,"","","","","","","","","","","",""]
[null,null,null,null,null,null,null,null,null,null,null,null,null,null,null,null,"","","","","","","","","","","",""]
[null,null,null,null,null,null,null,null,null,null,null,null,null,null,null,null,"","","","","","","","","","","",""]
[null,null,null,null,null,null,null,null,null,null,null,null,null,null,null,null,"","","","","","","","","","","",""]
[null,null,null,null,null,null,null,null,null,null,null,null,null,null,null,null,"","","","","","","","","","","",""]
[null,null,null,null,null,null,null,null,null,null,null,null,null,null,null,null,"","","","","","","","","","","",""]
[null,null,null,null,null,null,null,null,null,null,null,null,null,null,null,null,"","","","","","","","","","","",""]
[null,null,null,null,null,null,null,null,null,null,null,null,null,null,null,null,"","","","","","","","","","","",""]
[null,null,null,null,null,null,null,null,null,null,null,null,null,null,null,null,"","","","","","","","","","","",""]
[null,null,null,null,null,null,null,null,null,null,null,null,null,null,null,null,"","","","","","","","","","","",""]
[null,null,null,null,null,null,null,null,null,null,null,null,null,null,null,null,"","","","","","","","","","","",""]
[null,null,null,null,null,null,null,null,null,null,null,null,null,null,null,null,"","","","","","","","","","","",""]
[null,null,null,null,null,null,null,null,null,null,null,null,null,null,null,null,"","","","","","","","","","","",""]
[null,null,null,null,null,null,null,null,null,null,null,null,null,null,null,null,{"$f":"IF(ISBLANK(D$4),\"\",IF(ISBLANK($B905),\"\",\"https://\"&$D$2&\"/search?q=\"&SUBSTITUTE(D$4&\" \"&$B905,\" \",\"+\")&\"&ion=0&num=10\"))","v":""},{"$f":"IF(ISBLANK(E$4),\"\",IF(ISBLANK($B905),\"\",\"https://\"&$D$2&\"/search?q=\"&SUBSTITUTE(E$4&\" \"&$B905,\" \",\"+\")&\"&ion=0&num=10\"))","v":""},{"$f":"IF(ISBLANK(F$4),\"\",IF(ISBLANK($B905),\"\",\"https://\"&$D$2&\"/search?q=\"&SUBSTITUTE(F$4&\" \"&$B905,\" \",\"+\")&\"&ion=0&num=10\"))","v":""},{"$f":"IF(ISBLANK(G$4),\"\",IF(ISBLANK($B905),\"\",\"https://\"&$D$2&\"/search?q=\"&SUBSTITUTE(G$4&\" \"&$B905,\" \",\"+\")&\"&ion=0&num=10\"))","v":""},{"$f":"IF(ISBLANK(H$4),\"\",IF(ISBLANK($B905),\"\",\"https://\"&$D$2&\"/search?q=\"&SUBSTITUTE(H$4&\" \"&$B905,\" \",\"+\")&\"&ion=0&num=10\"))","v":""},{"$f":"IF(ISBLANK(I$4),\"\",IF(ISBLANK($B905),\"\",\"https://\"&$D$2&\"/search?q=\"&SUBSTITUTE(I$4&\" \"&$B905,\" \",\"+\")&\"&ion=0&num=10\"))","v":""},{"$f":"IF(ISBLANK(J$4),\"\",IF(ISBLANK($B905),\"\",\"https://\"&$D$2&\"/search?q=\"&SUBSTITUTE(J$4&\" \"&$B905,\" \",\"+\")&\"&ion=0&num=10\"))","v":""},{"$f":"IF(ISBLANK(K$4),\"\",IF(ISBLANK($B905),\"\",\"https://\"&$D$2&\"/search?q=\"&SUBSTITUTE(K$4&\" \"&$B905,\" \",\"+\")&\"&ion=0&num=10\"))","v":""},{"$f":"IF(ISBLANK(L$4),\"\",IF(ISBLANK($B905),\"\",\"https://\"&$D$2&\"/search?q=\"&SUBSTITUTE(L$4&\" \"&$B905,\" \",\"+\")&\"&ion=0&num=10\"))","v":""},{"$f":"IF(ISBLANK(M$4),\"\",IF(ISBLANK($B905),\"\",\"https://\"&$D$2&\"/search?q=\"&SUBSTITUTE(M$4&\" \"&$B905,\" \",\"+\")&\"&ion=0&num=10\"))","v":""},{"$f":"IF(ISBLANK(N$4),\"\",IF(ISBLANK($B905),\"\",\"https://\"&$D$2&\"/search?q=\"&SUBSTITUTE(N$4&\" \"&$B905,\" \",\"+\")&\"&ion=0&num=10\"))","v":""},{"$f":"IF(ISBLANK(O$4),\"\",IF(ISBLANK($B905),\"\",\"https://\"&$D$2&\"/search?q=\"&SUBSTITUTE(O$4&\" \"&$B905,\" \",\"+\")&\"&ion=0&num=10\"))","v":""}]
[null,null,null,null,null,null,null,null,null,null,null,null,null,null,null,null,"","","","","","","","","","","",""]
[null,null,null,null,null,null,null,null,null,null,null,null,null,null,null,null,"","","","","","","","","","","",""]
[null,null,null,null,null,null,null,null,null,null,null,null,null,null,null,null,"","","","","","","","","","","",""]
[null,null,null,null,null,null,null,null,null,null,null,null,null,null,null,null,"","","","","","","","","","","",""]
[null,null,null,null,null,null,null,null,null,null,null,null,null,null,null,null,"","","","","","","","","","","",""]
[null,null,null,null,null,null,null,null,null,null,null,null,null,null,null,null,"","","","","","","","","","","",""]
[null,null,null,null,null,null,null,null,null,null,null,null,null,null,null,null,"","","","","","","","","","","",""]
[null,null,null,null,null,null,null,null,null,null,null,null,null,null,null,null,"","","","","","","","","","","",""]
[null,null,null,null,null,null,null,null,null,null,null,null,null,null,null,null,"","","","","","","","","","","",""]
[null,null,null,null,null,null,null,null,null,null,null,null,null,null,null,null,"","","","","","","","","","","",""]
[null,null,null,null,null,null,null,null,null,null,null,null,null,null,null,null,"","","","","","","","","","","",""]
[null,null,null,null,null,null,null,null,null,null,null,null,null,null,null,null,"","","","","","","","","","","",""]
[null,null,null,null,null,null,null,null,null,null,null,null,null,null,null,null,"","","","","","","","","","","",""]
[null,null,null,null,null,null,null,null,null,null,null,null,null,null,null,null,"","","","","","","","","","","",""]
[null,null,null,null,null,null,null,null,null,null,null,null,null,null,null,null,"","","","","","","","","","","",""]
[null,null,null,null,null,null,null,null,null,null,null,null,null,null,null,null,"","","","","","","","","","","",""]
[null,null,null,null,null,null,null,null,null,null,null,null,null,null,null,null,"","","","","","","","","","","",""]
[null,null,null,null,null,null,null,null,null,null,null,null,null,null,null,null,"","","","","","","","","","","",""]
[null,null,null,null,null,null,null,null,null,null,null,null,null,null,null,null,"","","","","","","","","","","",""]
[null,null,null,null,null,null,null,null,null,null,null,null,null,null,null,null,"","","","","","","","","","","",""]
[null,null,null,null,null,null,null,null,null,null,null,null,null,null,null,null,"","","","","","","","","","","",""]
[null,null,null,null,null,null,null,null,null,null,null,null,null,null,null,null,"","","","","","","","","","","",""]
[null,null,null,null,null,null,null,null,null,null,null,null,null,null,null,null,"","","","","","","","","","","",""]
[null,null,null,null,null,null,null,null,null,null,null,null,null,null,null,null,"","","","","","","","","","","",""]
[null,null,null,null,null,null,null,null,null,null,null,null,null,null,null,null,"","","","","","","","","","","",""]
[null,null,null,null,null,null,null,null,null,null,null,null,null,null,null,null,"","","","","","","","","","","",""]
[null,null,null,null,null,null,null,null,null,null,null,null,null,null,null,null,"","","","","","","","","","","",""]
[null,null,null,null,null,null,null,null,null,null,null,null,null,null,null,null,"","","","","","","","","","","",""]
[null,null,null,null,null,null,null,null,null,null,null,null,null,null,null,null,"","","","","","","","","","","",""]
[null,null,null,null,null,null,null,null,null,null,null,null,null,null,null,null,"","","","","","","","","","","",""]
[null,null,null,null,null,null,null,null,null,null,null,null,null,null,null,null,"","","","","","","","","","","",""]
[null,null,null,null,null,null,null,null,null,null,null,null,null,null,null,null,"","","","","","","","","","","",""]
[null,null,null,null,null,null,null,null,null,null,null,null,null,null,null,null,"","","","","","","","","","","",""]
[null,null,null,null,null,null,null,null,null,null,null,null,null,null,null,null,"","","","","","","","","","","",""]
[null,null,null,null,null,null,null,null,null,null,null,null,null,null,null,null,"","","","","","","","","","","",""]
[null,null,null,null,null,null,null,null,null,null,null,null,null,null,null,null,"","","","","","","","","","","",""]
[null,null,null,null,null,null,null,null,null,null,null,null,null,null,null,null,"","","","","","","","","","","",""]
[null,null,null,null,null,null,null,null,null,null,null,null,null,null,null,null,"","","","","","","","","","","",""]
[null,null,null,null,null,null,null,null,null,null,null,null,null,null,null,null,"","","","","","","","","","","",""]
[null,null,null,null,null,null,null,null,null,null,null,null,null,null,null,null,"","","","","","","","","","","",""]
[null,null,null,null,null,null,null,null,null,null,null,null,null,null,null,null,"","","","","","","","","","","",""]
[null,null,null,null,null,null,null,null,null,null,null,null,null,null,null,null,"","","","","","","","","","","",""]
[null,null,null,null,null,null,null,null,null,null,null,null,null,null,null,null,"","","","","","","","","","","",""]
[null,null,null,null,null,null,null,null,null,null,null,null,null,null,null,null,"","","","","","","","","","","",""]
[null,null,null,null,null,null,null,null,null,null,null,null,null,null,null,null,"","","","","","","","","","","",""]
[null,null,null,null,null,null,null,null,null,null,null,null,null,null,null,null,"","","","","","","","","","","",""]
[null,null,null,null,null,null,null,null,null,null,null,null,null,null,null,null,"","","","","","","","","","","",""]
[null,null,null,null,null,null,null,null,null,null,null,null,null,null,null,null,"","","","","","","","","","","",""]
[null,null,null,null,null,null,null,null,null,null,null,null,null,null,null,null,"","","","","","","","","","","",""]
[null,null,null,null,null,null,null,null,null,null,null,null,null,null,null,null,"","","","","","","","","","","",""]
[null,null,null,null,null,null,null,null,null,null,null,null,null,null,null,null,"","","","","","","","","","","",""]
[null,null,null,null,null,null,null,null,null,null,null,null,null,null,null,null,"","","","","","","","","","","",""]
[null,null,null,null,null,null,null,null,null,null,null,null,null,null,null,null,"","","","","","","","","","","",""]
[null,null,null,null,null,null,null,null,null,null,null,null,null,null,null,null,"","","","","","","","","","","",""]
[null,null,null,null,null,null,null,null,null,null,null,null,null,null,null,null,"","","","","","","","","","","",""]
[null,null,null,null,null,null,null,null,null,null,null,null,null,null,null,null,"","","","","","","","","","","",""]
[null,null,null,null,null,null,null,null,null,null,null,null,null,null,null,null,"","","","","","","","","","","",""]
[null,null,null,null,null,null,null,null,null,null,null,null,null,null,null,null,"","","","","","","","","","","",""]
[null,null,null,null,null,null,null,null,null,null,null,null,null,null,null,null,"","","","","","","","","","","",""]
[null,null,null,null,null,null,null,null,null,null,null,null,null,null,null,null,"","","","","","","","","","","",""]
[null,null,null,null,null,null,null,null,null,null,null,null,null,null,null,null,"","","","","","","","","","","",""]
[null,null,null,null,null,null,null,null,null,null,null,null,null,null,null,null,"","","","","","","","","","","",""]
[null,null,null,null,null,null,null,null,null,null,null,null,null,null,null,null,"","","","","","","","","","","",""]
[null,null,null,null,null,null,null,null,null,null,null,null,null,null,null,null,{"$f":"IF(ISBLANK(D$4),\"\",IF(ISBLANK($B969),\"\",\"https://\"&$D$2&\"/search?q=\"&SUBSTITUTE(D$4&\" \"&$B969,\" \",\"+\")&\"&ion=0&num=10\"))","v":""},{"$f":"IF(ISBLANK(E$4),\"\",IF(ISBLANK($B969),\"\",\"https://\"&$D$2&\"/search?q=\"&SUBSTITUTE(E$4&\" \"&$B969,\" \",\"+\")&\"&ion=0&num=10\"))","v":""},{"$f":"IF(ISBLANK(F$4),\"\",IF(ISBLANK($B969),\"\",\"https://\"&$D$2&\"/search?q=\"&SUBSTITUTE(F$4&\" \"&$B969,\" \",\"+\")&\"&ion=0&num=10\"))","v":""},{"$f":"IF(ISBLANK(G$4),\"\",IF(ISBLANK($B969),\"\",\"https://\"&$D$2&\"/search?q=\"&SUBSTITUTE(G$4&\" \"&$B969,\" \",\"+\")&\"&ion=0&num=10\"))","v":""},{"$f":"IF(ISBLANK(H$4),\"\",IF(ISBLANK($B969),\"\",\"https://\"&$D$2&\"/search?q=\"&SUBSTITUTE(H$4&\" \"&$B969,\" \",\"+\")&\"&ion=0&num=10\"))","v":""},{"$f":"IF(ISBLANK(I$4),\"\",IF(ISBLANK($B969),\"\",\"https://\"&$D$2&\"/search?q=\"&SUBSTITUTE(I$4&\" \"&$B969,\" \",\"+\")&\"&ion=0&num=10\"))","v":""},{"$f":"IF(ISBLANK(J$4),\"\",IF(ISBLANK($B969),\"\",\"https://\"&$D$2&\"/search?q=\"&SUBSTITUTE(J$4&\" \"&$B969,\" \",\"+\")&\"&ion=0&num=10\"))","v":""},{"$f":"IF(ISBLANK(K$4),\"\",IF(ISBLANK($B969),\"\",\"https://\"&$D$2&\"/search?q=\"&SUBSTITUTE(K$4&\" \"&$B969,\" \",\"+\")&\"&ion=0&num=10\"))","v":""},{"$f":"IF(ISBLANK(L$4),\"\",IF(ISBLANK($B969),\"\",\"https://\"&$D$2&\"/search?q=\"&SUBSTITUTE(L$4&\" \"&$B969,\" \",\"+\")&\"&ion=0&num=10\"))","v":""},{"$f":"IF(ISBLANK(M$4),\"\",IF(ISBLANK($B969),\"\",\"https://\"&$D$2&\"/search?q=\"&SUBSTITUTE(M$4&\" \"&$B969,\" \",\"+\")&\"&ion=0&num=10\"))","v":""},{"$f":"IF(ISBLANK(N$4),\"\",IF(ISBLANK($B969),\"\",\"https://\"&$D$2&\"/search?q=\"&SUBSTITUTE(N$4&\" \"&$B969,\" \",\"+\")&\"&ion=0&num=10\"))","v":""},{"$f":"IF(ISBLANK(O$4),\"\",IF(ISBLANK($B969),\"\",\"https://\"&$D$2&\"/search?q=\"&SUBSTITUTE(O$4&\" \"&$B969,\" \",\"+\")&\"&ion=0&num=10\"))","v":""}]
[null,null,null,null,null,null,null,null,null,null,null,null,null,null,null,null,"","","","","","","","","","","",""]
[null,null,null,null,null,null,null,null,null,null,null,null,null,null,null,null,"","","","","","","","","","","",""]
[null,null,null,null,null,null,null,null,null,null,null,null,null,null,null,null,"","","","","","","","","","","",""]
[null,null,null,null,null,null,null,null,null,null,null,null,null,null,null,null,"","","","","","","","","","","",""]
[null,null,null,null,null,null,null,null,null,null,null,null,null,null,null,null,"","","","","","","","","","","",""]
[null,null,null,null,null,null,null,null,null,null,null,null,null,null,null,null,"","","","","","","","","","","",""]
[null,null,null,null,null,null,null,null,null,null,null,null,null,null,null,null,"","","","","","","","","","","",""]
[null,null,null,null,null,null,null,null,null,null,null,null,null,null,null,null,"","","","","","","","","","","",""]
[null,null,null,null,null,null,null,null,null,null,null,null,null,null,null,null,"","","","","","","","","","","",""]
[null,null,null,null,null,null,null,null,null,null,null,null,null,null,null,null,"","","","","","","","","","","",""]
[null,null,null,null,null,null,null,null,null,null,null,null,null,null,null,null,"","","","","","","","","","","",""]
[null,null,null,null,null,null,null,null,null,null,null,null,null,null,null,null,"","","","","","","","","","","",""]
[null,null,null,null,null,null,null,null,null,null,null,null,null,null,null,null,"","","","","","","","","","","",""]
[null,null,null,null,null,null,null,null,null,null,null,null,null,null,null,null,"","","","","","","","","","","",""]
[null,null,null,null,null,null,null,null,null,null,null,null,null,null,null,null,"","","","","","","","","","","",""]
[null,null,null,null,null,null,null,null,null,null,null,null,null,null,null,null,"","","","","","","","","","","",""]
[null,null,null,null,null,null,null,null,null,null,null,null,null,null,null,null,"","","","","","","","","","","",""]
[null,null,null,null,null,null,null,null,null,null,null,null,null,null,null,null,"","","","","","","","","","","",""]
[null,null,null,null,null,null,null,null,null,null,null,null,null,null,null,null,"","","","","","","","","","","",""]
[null,null,null,null,null,null,null,null,null,null,null,null,null,null,null,null,"","","","","","","","","","","",""]
[null,null,null,null,null,null,null,null,null,null,null,null,null,null,null,null,"","","","","","","","","","","",""]
[null,null,null,null,null,null,null,null,null,null,null,null,null,null,null,null,"","","","","","","","","","","",""]
[null,null,null,null,null,null,null,null,null,null,null,null,null,null,null,null,"","","","","","","","","","","",""]
[null,null,null,null,null,null,null,null,null,null,null,null,null,null,null,null,"","","","","","","","","","","",""]
[null,null,null,null,null,null,null,null,null,null,null,null,null,null,null,null,"","","","","","","","","","","",""]
[null,null,null,null,null,null,null,null,null,null,null,null,null,null,null,null,"","","","","","","","","","","",""]
[null,null,null,null,null,null,null,null,null,null,null,null,null,null,null,null,"","","","","","","","","","","",""]
[null,null,null,null,null,null,null,null,null,null,null,null,null,null,null,null,"","","","","","","","","","","",""]
[null,null,null,null,null,null,null,null,null,null,null,null,null,null,null,null,"","","","","","","","","","","",""]
[null,null,null,null,null,null,null,null,null,null,null,null,null,null,null,null,"","","","","","","","","","","",""]
[null,null,null,null,null,null,null,null,null,null,null,null,null,null,null,null,"","","","","","","","","","","",""]
[null,null,null,null,null,null,null,null,null,null,null,null,null,null,null,null,"","","","","","","","","","","",""]
[null,null,null,null,null,null,null,null,null,null,null,null,null,null,null,null,"","","","","","","","","","","",""]
[null,null,null,null,null,null,null,null,null,null,null,null,null,null,null,null,"","","","","","","","","","","",""]
[null,null,null,null,null,null,null,null,null,null,null,null,null,null,null,null,"","","","","","","","","","","",""]
[null,null,null,null,null,null,null,null,null,null,null,null,null,null,null,null,"","","","","","","","","","","",""]

{"sheet":"Tuto complet (pas à jour)","index":1,"n_rows":15,"n_cols":3,"rows_kept":15,"cut":false,"hidden":true,"merged":[[8,0,8,5],[10,0,10,5],[11,1,11,5],[0,0,0,5],[1,1,1,5],[2,0,2,5],[6,0,6,5],[7,1,7,5]]}
["Tuto Scrapping questions PAA via Excel & Screaming Frog"]
["- Installer le plugin chrome Scraper (URL à droite)","https://chrome.google.com/webstore/detail/scraper/mbigbapnjcgaffohmbkdlecaccepngjd?utm_source=chrome-app-launcher-info-dialog"]
[]
["- Se créer une liste de requêtes Google sur laquelle Screaming Frog ira chercher les PAA\n> Soit se créer ces requêtes \"à la main\" sur le modèle à droite ==> \n> Soit utiliser le tool présent sur l'onglet Gen_requete_PAA de ce document","mot clé",{"$f":"\"https://www.google.fr/search?q=\"&SUBSTITUTE(B4,\" \",\"+\")&\"&ion=0&num=10\"","v":"https://www.google.fr/search?q=mot+clé&ion=0&num=10"}]
["- Aller sur une SERP contenant une PAA (lien à droite)","https://www.google.fr/search?q=comment+vivre+heureux&ion=0&num=10"]
["- Clic droit sur une question, cliquer sur \"Scrape Similar\""]
[]
["- Récupérer la valeur \"Xpath Reference\" en supprimant les crochets et le nombre présent dedans","//div/g-accordion-expander/div/div"]
["SUR SCREAMING FROG"]
["- Réduire la vitesse de Screaming Frog comme suit : \nConfiguration > Speed"]
[]
["- Changer le User Agent avec la valeur de la cellule à droite : \nConfguration > User Agent","Mozilla/5.0 (Windows NT 5.1) AppleWebKit/535.1 (KHTML, like Gecko) Chrome/14.0.792.0 Safari/535.1"]
["- Paramétrer un Extracteur sur mesure qui ira récupérer le texte des PAA\nConfguration > Custom > Extraction\nColler le XPATH récupéré de Scrape Similar (sans le nombre et les crochets)\nExtraire le texte"]
["- Passer en mode \"List\", et coller manuellement les URLs de requêtes Google que vous avez générées, pour que SF les crawle"]
["- Exportez les résultats, vous aurez la liste des questions PAA. \n(possible de modifier le Xpath pour récupérer plus d'éléments)"]